Workbook

Sheet Общее
B1: 1 | E1: 2 | F1: 3 | H1: 5 | I1: 6 | J1: 7 | K1: 8 | L1: 9 | M1: 10 | N1: 11 | O1: 12 | P1: 13 | Q1: 14 | R1: 15 | S1: 16 | T1: 17 | U1: 18 | V1: 19 | W1: 20 | X1: 21 | Y1: 22 | Z1: 23 | AA1: 24 | AB1: 25 | AC1: 26 | AD1: 27 | AF1: 29
B2: Договора | E2: Территория | F2: Электроснабжения объекта, расположенного по адресу | H2: Льгота | I2: Подземная комиссия | J2: Дополнительные согласования, ТУ | K2: Передано кадастровому инженеру | L2: Подготовлен акт выбора трассы | M2: Заявление на выдачу разрешения на размещение | N2: Получено разрешение на размещение | O2: Заявление на проведение земляных работ | P2: Получен ордер на проведние земляных работ | Q2: Заявление на снос зелёных насаждений | R2: Разрешение на снос зелёных насаждений | S2: ВЛ 0,4 кВ м | T2: ВЛ 6(10) кВ м | U2: КЛ 0,4 кВ м | V2: КЛ 6(10) кВ м | W2: ТП-10(6)/ 0,4 кВ, шт | X2: Мощность, кВт | Y2: Проблемный (! - контроль директора, + - проблемный) | Z2: ГП/500 | AA2: Поступление материалов на склад | AC2: Объект передан в работу | AD2: Закрытие | AF2: Комментарий
AA3: Опережающие | AB3: Плановые | AH3: Льгота | AI3: 1 | AJ3: 100% к стройке | AK3: 0.5 | AL3: 50% к стройке | AM3: 550 р. | AN3: 550 р. к стройке | AO3: Без льготы | AP3: Без льготы к стройке
B4: Номер | C4: Дата заключения договора | D4: № договора | E4: ЕМР | F4: Общие длины | H4: - | I4: 28 | J4: 1 | K4: 22 | L4: 14 | M4: 16 | N4: 7 | O4: 7 | P4: 5 | S4: 10185 | T4: 9648 | U4: 431 | V4: 6810 | W4: 14 | X4: - | Y4: 23 | Z4: - | AF4: - | AH4: ЕМР | AI4: 42 | AJ4: 9 | AK4: 3 | AL4: 1 | AM4: 30 | AN4: 5 | AO4: 0 | AP4: 0
E5: ЕМР | F5: К строительству | S5: 298 | T5: =SUM(T33+#REF!+#REF!+#REF!+#REF!+T115+#REF!+#REF!) ->  | U5: 131 | V5: 415 | W5: 1 | X5: - | Y5: 3 | Z5: -
E6: ПКГО | F6: Общие длины | I6: 29 | J6: 18 | K6: 0 | L6: 6 | M6: 3 | N6: 19 | O6: 2 | P6: 14 | Q6: 2 | R6: 1 | S6: 3156 | T6: 517 | U6: 8441 | V6: 3215 | W6: 13 | X6: - | Y6: 34 | Z6: - | AH6: ПКГО | AI6: 33 | AJ6: 3 | AK6: 2 | AL6: 0 | AM6: 29 | AN6: 4 | AO6: 1 | AP6: 0
E7: ПКГО | F7: К строительству | H7: - | S7: 126 | T7: 0 | U7: 1242 | V7: 970 | W7: 4 | X7: - | Y7: 4 | Z7: - | AF7: -
D8: =CONCATENATE("ОТП-",IF(COUNTIF(C446,"*2016*"),2016,IF(COUNTIF(C446,"*2017*"),2017,IF(COUNTIF(C446,"*2018*"),2018,IF(COUNTIF(C446,"*2019*"),2019,IF(COUNTIF(C446,"*2020*"),2020,IF(COUNTIF(C446,"*2021*"),2021,IF(COUNTIF(C446,"*2022*"),2022,IF(COUNTIF(C446,"*2023*"),2023,IF(COUNTIF(C446,"*2024*"),2024,IF(COUNTIF(C446,"*2025*"),2025,"добавьте значения в формулу, плиз (или введите правильную дату"))))))))))-2000,"-",B446," от ",C446) -> ОТП-20-548 от 15.04.2020 | E8: ЕГП | F8: Общие длины | H8: - | I8: 0 | J8: 1 | K8: 1 | L8: 2 | M8: 0 | N8: 5 | O8: 2 | P8: 4 | Q8: 0 | R8: 0 | S8: 1355 | T8: 850 | U8: 1310 | V8: 20 | W8: 3 | X8: - | Y8: 11 | Z8: - | AH8: ЕГП | AI8: 3 | AJ8: 0 | AK8: 1 | AL8: 0 | AM8: 21 | AN8: 8 | AO8: 0 | AP8: 0
E9: ЕГП | F9: К строительству | H9: - | S9: 0 | T9: =#REF! ->  | U9: 150 | V9: =#REF! ->  | W9: =#REF! ->  | X9: - | Y9: 1 | Z9: - | AF9: -
E10: ВГП | F10: Общие длины | H10: - | I10: 0 | J10: 0 | K10: 0 | L10: 0 | M10: 0 | N10: 0 | O10: 0 | P10: 0 | Q10: 0 | R10: 0
E11: ВГП
E12: МРЭС | F12: Общие длины | I12: 0 | J12: 0 | K12: 0 | L12: 0 | M12: 0 | N12: 0 | O12: 0 | P12: 0 | S12: 0 | T12: 0 | U12: 0 | V12: 0 | W12: 0 | X12: - | Y12: - | Z12: - | AH12: Мильково | AI12: 0 | AK12: 0 | AM12: 0 | AO12: 0 | AP12: 0
E13: МРЭС | F13: К строительству | H13: - | S13: 0 | T13: 0 | U13: 0 | V13: 0 | W13: 0 | X13: - | Z13: - | AF13: -
D14: ОТП-18-00771 от 10.12.2018 | E14: ПКГО | F14: "Сооружения Автостоянка (парковка)", расположенный по адресу: установлено относительно ориентира, расположенного за пределами участка. Почтовый адрес ориентира: Камчатский край, г. Петропавловск-Камчатский (в районе ул. Фролова) | H14: 1 | I14: 27.05.2019 - согласование завершено 28.02.2019 - начало согласования | J14: 16.05.2019 - получены ТУ от МКУ САД 23.04.2019 - повторный запрос ТУ 12.03.2019 | K14: 23.04.2019 - корректировки 10.04.2019 | L14: 2019-04-23 | M14: 2019-05-28 | N14: № 680/19 от 06.06.19 (до 06.06.21) | O14: 03.02.2020 - на продление 19.06.2019 | P14: Ордер № 40 от 19.02.2020 (до 31.10.2020) Ордер № 290 от 28.06.2019 (до 31.12.2019) | Q14: Не требуется | R14: Не требуется | S14: 0 | T14: 0 | U14: 362 | V14: 0 | W14: 0 | X14: 100 | Y14: ! | Z14: -
D15: ОТП-18-00764 от 10.12.2018 | E15: ПКГО | F15: "Автостоянка (парковка)", расположенный по адресу: Камчатский край, г. Петропавловск-Камчатский, ул. Кавказская | H15: 1 | I15: 20.06.19 - передано на печать ПКГО 24.05.2019 - замечания устранены 23.05.2019 - получены замечания 23.05.2019 - начало согласования. 16.05.2019 - приступили к разработке | J15: 13.06.2019 - получено согласование 06.06.2019 - запрос ТУ в МКУ "САД ПКГО" | K15: 2019-06-03 | L15: 2019-06-03 | M15: 2019-07-01 | N15: № 902/19 от 08.07.2019 (до 08.07.2021) | O15: 2019-07-25 | P15: № 373 от 29.07.2019 (до 24.06.2020) | Q15: Не требуется | R15: Не требуется | S15: 0 | T15: 0 | U15: 230 | V15: 0 | W15: 0 | X15: 40 | Y15: ! | Z15: - | AF15: Весь коридор проходит по земельному участку дороги ул. Кавказская (14:233), по сведениям ЕГРН этот участок никому не предоставлен (есть только одно обременение - сервитут), т.е. гос. собственность не разграничена Реконструкция - в РУ-0,4 кВ ТП-426 на 2 секцию установить панель ЩО-70-1-02
D16: ОТП-18-00766 от 10.12.2018 | E16: ПКГО | F16: "Сооружения Автостоянка (парковка)", расположенный по адресу: Камчатский край, г. Петропавловск-Камчатский, ул. Кавказская, д. 17 | H16: 1 | S16: 0 | X16: 40 | Y16: ! | Z16: -
D17: ОТП-18-00578 от 14.09.2018 | E17: ПКГО | F17: "Индивидуальный жилой дом", расположенный по адресу: участок находится примерно в 136 м по направлению на северо-запад от ориентира жилой дом, расположенного за пределами участка, адрес ориентира: Камчатский край, ул. Гастелло, д. 11а | H17: 550 р. | I17: 20.08.2019 приступили к разработке | J17: - | K17: - | L17: 2019-09-02 | M17: 2019-09-13 | N17: 26.09.2019 №1731/19 | O17: от 14.10.2019 №591 | P17: № 591 от 14.10.2019 | S17: 89 | T17: 0 | U17: 0 | V17: 0 | W17: 0 | X17: 15 | Y17: !
D18: - | E18: ПКГО | F18: "Установка электрических котлов взамен существующей котельной № 13 "Октябрьская" Петропавловск-Камчатского городского округа", расположенный по адресу: г. Петропавловск-Камчатский, на неразграниченном земельном участке с многоквартирным жилым домом по ул. Октябрьская, д. 5а | H18: - | I18: 13.09.19-согласование 100%, 27.05.2019 приступили к разработке | J18: ТУ № 3465/19/08 от 30.09.2019г., 19.09.19-запрос ТУ в МКУ САД | K18: 2019-09-30 | L18: 2019-10-01 | M18: повторное заяв-ие от 29.10.19, отказ от 17.10.19 № 010801/7516/19, 04.10.2019-подали на размещение | N18: №1987/19 от 07.11.2019 | O18: 2019-11-14 | P18: № 666 от 19.11.2019 (до 14.11.2021) | S18: 0 | T18: 0 | U18: 380 | V18: 0 | W18: 0 | X18: 395 | Y18: ! | AD18: +
D19: ОТП-18-00306 от 30.05.2018 | E19: ЕМР | F19: "Хозяйственные постройки", расположенный по адресу: Камчатский край, Елизовский район, район реки Мутная-1 | H19: 550 р. | I19: 25.04.2019 - согласована на 100% 12.04.2019-согласована на 60% | J19: Необходимо заключение сервитута с ТУ Росимущества в КК + проект рекультивации земель | K19: 13.05.2019 - повторно 25.04.2019 - Г.Г. Белоусову | L19: 2019-06-10 | M19: 2019-10-01 | N19: Отказ № 2491 от 26.06.2019 | O19: - | P19: заключен сервитут | S19: 750 | T19: 0 | U19: 0 | V19: 0 | W19: 0 | X19: 15 | Y19: ! | AF19: 27.02.2020- на согласовании дс к сервитуту с увеличенными границами сервитута. Сервитут передан в оплату. 24.10.2019 Сервитут на согласовании в ЦЭС На 23.08.2019 - проект сервитута готов, проект рекультивации земель изготавливается. На 26.07.2019 - Проект сервитута на согласовании у юристов, необходимо изготовление проекта рекультивации земель.
D20: ОТП-19-00239 от 13.05.2019 | E20: ПКГО | F20: "Размещение объектов автотранспорта", расположенный по адресу: местоположение установлено относительно ориентира, расположенного за пределами участка. Почтовый адрес ориентира: Камчатский ркай, г. Петропавловск-Камчатский, ул. Вольского | H20: 1 | I20: 16.10.2019 - новая трасс 20.06.19 на печать ПКГО 07.06.2019 - трасса разработана 21.05.2019 приступили к разработке | J20: ТУ № 3700/19 от 22.10.19г, ТУ- МКУ САД-ЗАПРОС 17.10.2019 | K20: - | L20: 2019-06-26 | M20: от 01.11.2019 № 12-08-00/8027/19 отказ - от 23.09.2019 № 01-08021/6862 Повторное заявление 09.09.2019. 11.07.2019 - отказ 01.07.2019 | N20: от 12.11.2019 № 2006/19 | O20: 2019-11-19 | P20: от 22.11.2019 №672 | S20: 0 | T20: 0 | U20: 220 | V20: 0 | W20: 0 | X20: 140 | Y20: ! | AF20: 01.11.2019 подготовлено заявление на размещение .2019 трасса на согласовании
D21: ОТП-18-00709 от 21.11.2018 | E21: ПКГО | F21: "Крестьянское (фермерское) хозяйство", расположенный по адресу: Камчатский край, г. Петропавловск-Камчатский | H21: 1 | I21: 16.10.2019 - скорректирована трасса, 05.09.2019-согласование 100%, 25.07.2019 - начало согласования 23.07.2019 - Разработаны 5 вариантов трассы | J21: ТУ от 19.09.2019 № 3371/19/08 МКУ САД-запрос ТУ 09.09.2019 | K21: 2019-09-24 | L21: 2019-09-24 | M21: 01.11.2019 заявление на размещение, 09.10.2019 - отказ 30.09.2019 | N21: №1986/19 от 07.11.2019 | O21: 2019-11-14 | P21: № 665 от 19.11.2019 (до 18.11.2021) | S21: 230 | T21: 0 | U21: 0 | V21: 0 | W21: 0 | X21: 150 | Y21: ! | AF21: Можно объеденить с ОТП-18-00708!
D22: ОТП-18-00767 от 10.12.2018 | E22: ПКГО | F22: "Автостоянка (парковка)", расположенный по адресу: Камчатский край, г. Петропавловск-Камчатский, пр-кт Рыбаков | H22: 1 | I22: 06.06.2019- согласование завершено 23.05.2019 - начало согласования 16.05.2019 - приступили к разработке | J22: - | K22: 2019-06-03 | L22: 2019-06-04 | M22: не требуется | N22: не требуется | O22: 21.10.219 | P22: № 608 от 22.10.2019 (до 28.11.2019) | S22: 0 | T22: 0 | U22: 100 | V22: 0 | W22: 0 | X22: 30 | Y22: ! | Z22: - | AF22: Коридор полностью в границах ЗУ 18:416, по сведениям ЕГРН этот участок предоставлен в аренду (скорее всего - заявителю на это ТП). Необходимо найти правообладателя и заключить сервитут.
D23: ОТП-18-00768 от 03.12.2018 | E23: ПКГО | F23: "Автостоянка (парковка)", расположенный по адресу: установлено относительно ориентира, расположенного за пределами участка. Почтовый адрес ориентира: Камчатский край, г. Петропавловск-Камчатский (район пр. Циолковского) | H23: 1 | I23: 02.04.2020 - трасса разработана 23.03.2020 - внесен второй договор Внучковой 27.12.2019 - разработана трасса на оба объекта, 17.12.2019 - внесена Внучкова 30.07.2019 - согласовано 23.05.2019 - начало согласования. 16.05.2019 - приступили к разработке | J23: 11.02.2020- направлен запрос на ТУ МКУ САД 05.07.2019 - получены ТУ от МКУ "БГ ПКГО" 31.05.2019 - запрос ТУ в МКУ "СБ ПКГО" | K23: 24.02.2020-Акт выбора Кристина 03.06.2019 - ООО "Камчачтинвестснаб" | L23: 28.02.2020 - подготовлен. 12.08.2019 - исправленный 04.06.2019 - ООО "Камчачтинвестснаб" | M23: 15.10.2019 - 03.10.2019 - ООО "Камчачтинвестснаб" | S23: 0 | T23: 0 | U23: 100 | V23: 330 | W23: 1 | X23: 30 | Y23: ! | Z23: - | AF23: 02.03.2020 зарос в тэц для согласования прохождения кабельной линии в границах участка ПАО Камчатскэнерго" предоставленного для строительства теплотрассы. Отказ в размещении , сформировался новый земельный участок. Реконструкция - в РУ-0,4 кВ ТП-426 на 2 секцию установить панель ЩО-70-1-02
D24: ОТП-19-00759 от 12.12.19 | E24: ПКГО | F24: Административное здание, пр. Циолковского | X24: 100
D25: ОТП-20-00075 от 19.03.2020 | E25: ПКГО | F25: "Административное здание", расположенное по адресу: Российская Федерация, Камчатский край, г. Петропавловск-Камчатский, пр-кт Циолковского | H25: 1 | X25: 140
D26: ОТП-18-00769 от 03.12.2018 | E26: ПКГО | F26: "Сооружения Автостоянка (парковка)", расположенный по адресу: установлено относительно ориентира, расположенного за пределами участка. Почтовый адрес ориентира: Камчатский край, г. Петропавловск-Камчатский, б-р Рыбацкой Славы. | H26: 1 | I26: 06.06.2019 - согласование завершено 23.05.2019 - начало согласования. 16.05.2019 - приступили к разработке | J26: - | K26: 2019-06-03 | L26: 12.08.2019 - исправленный 04.06.2019 | S26: 0 | T26: 0 | U26: 70 | V26: 0 | W26: 0 | X26: 30 | Y26: ! | Z26: - | AF26: Необходимо заключение сервитута с арендатором участка 41:01:0010118:622. Реконструкция - в РУ-0,4 кВ ТП-425 установить РЩ с АВ расчётного тока.
D27: ОТП-18-00759 от 03.12.2018 | E27: ПКГО | F27: "Автостоянка (парковка)", расположенный по адресу: установлено относительно ориентира, расположенного за пределами участка. Почтовый адрес ориентира: Камчатский край, г. Петропавловск-Камчатский, пр-кт Карла Маркса | H27: 1 | I27: 30.05.2019 - согласование завершено 07.02.2019 - начало согласования | J27: 30.05.2019 - получены ТУ от МКУ "САД ПКГО" 27.05.2019 - проведена встреча с представителем МКУ "САД ПКГО", переданы все ранее направленные документы. 23.04.2019 - повторный запрос ТУ 12.03.2019 | K27: 2019-04-10 | L27: 2019-04-23 | S27: 0 | T27: 0 | U27: 270 | V27: 0 | W27: 0 | X27: 25 | Y27: ! | Z27: - | AF27: В январе подана заявка в росимущество на размещение. Необходим сервитут с МКУ САД. Необходимо заключение сервитута с арендатором участка под ТЦ "Атом"
D28: ОТП-18-00765 от 10.12.2018 | E28: ПКГО | F28: "Сооружения Автостоянка (парковка)", расположенный по адресу: Российская Федерация, Камчатский край, г. Петропавловск-Камчатский, пр. Карла Маркса | H28: 1 | I28: 19.06.19 - согласование завершено 24.05.2019 - замечания устранены 23.05.2019 - получены замечания 23.05.2019 - начало согласования. 16.05.2019 - приступили к разработке | J28: ТУ от МКУ "САД ПКГО" № 2131/19 от 24.06.2019 06.06.2019 - запрос ТУ в МКУ "САД ПКГО" | K28: 2019-06-03 | L28: 05.03.2020 направлены документы в МКУ САД на установление сервитута 25.01.2020 - напрвлены документы на заключения разрешения на размещение в РОСИМУЩЕСТВО 04.06.2019-отказ | S28: 0 | T28: 0 | U28: 180 | V28: 0 | W28: 0 | X28: 30 | Y28: ! | Z28: - | AF28: 10.02.2020-подано заявление в росимущество на установление сервитута. ( необходимо подготовить схему границ сервитута в МКУ САД и акт выдора для подачи в Архитектуру) Корректировка трассы. Участок 14:84 по сведениям ЕГРН находится в Федеральной собственности - необходимо заключение сервитута. Реконструкция - в РУ-0,4 кВ ТП-413 на 2 секцию установить панель ЩО-70-1-02
D29: ОТП-19-00103 от 12.03.2019 | E29: ЕМР | F29: "Жилой дом", расположенный по адресу: Камчатский край, п. Раздольный | H29: 550 р. | I29: новая трасса на согласовании 29.10.19 согласовано 10.07.2019 - начало согласования 10.07.2019 - трасса разработана 08.07.2019 - трасса принята в разработку | J29: - | K29: - | L29: 07.11.2019 - новая трасса | S29: 45 | T29: 0 | U29: 0 | V29: 0 | W29: 0 | X29: 15 | Y29: ! | Z29: - | AF29: Необходима корректировка трассы
D30: ОТП-19-00604 от 22.10.2019 | E30: ЕМР | F30: "Осуществление рекреационной деятельности", расположенный по адресу: Камчатский край, Елизовский район, Елизовское лесничество, квартал 265 выдел 5 Петропавловского участкового лесничества (б. Авачинское) | H30: 1 | I30: 21.10.2019 - поступил в работу | J30: 25.10.2019 - направлен запрос выписки из лесного реестра (вх. № 59/2026 от 25.10.2019) | X30: 15 | Y30: ! | AF30: 31.01.2020 Утвержден проект освоения лесов и подана лесная (31.01.2020). декларация 24.10.2019 проведена встреча с представителями Елизовского лесничества и Агентства лесного хозяйства и охраны животного мира Камчатского края Необходимо уточнить местоположение участков заявителей.
D31: ОТП-19-00605 от 22.10.2019 | E31: ЕМР | F31: "Осуществление рекреационной деятельности", расположенный по адресу: Камчатский край, Елизовский район, Елизовское лесничество, квартал 265 выдел 5 Петропавловского участкового лесничества (б. Авачинское) | H31: 1 | X31: 15 | Y31: !
D32: ОТП-17-00718 от 08.09.2017 | E32: ЕМР | F32: Гараж, Камчатский край, Елизовский район | H32: 550 р. | I32: 30.05.2019 приступили к разработке | J32: Нет информации | K32: Нет информации | L32: Нет информации | M32: Нет информации | N32: Заключен сервитут с Росимуществом от 26.02.2020 №02 | O32: подано | P32: Нет информации | Q32: Нет информации | R32: Нет информации | S32: 50 | T32: 500 | U32: 0 | V32: 0 | W32: 1 | X32: 15 | Y32: ! | Z32: ГП-50 от 07.11.2018
D33: ОТП-18-00077 от 02.03.2018 | E33: ЕМР | H33: 1 | I33: 02.04.2019 - печати 25.03.2019 - согласования 11.10.2018 - старый образец | J33: - | K33: 2019-02-20 | L33: 2019-03-21 | M33: 2019-04-03 | N33: 2019-04-11 | O33: 2019-04-16 | P33: Ордер № 06/19 от 18.04.2019 (до 31.12.2019) | Q33: 2019-05-06 | R33: Порубочный № 2 от 08.05.2019 (до 31.12.2019) | S33: 0 | T33: 0 | U33: 131 | V33: 0 | W33: 0 | X33: 140 | Y33: + | Z33: - | AD33: 31.07.2019 | AF33: Необходимо устранить замечания по проектной документации и заключить сервитут с ФКУ ДСД! Проектная документация на пересечение федеральной дороги на согласовании в ФКУ ДСД.
D34: ОТП-18-00077 от 02.03.2018 | E34: ПКГО | H34: 1 | I34: 100%. Прошли в сентябре 2018 | J34: 30.04.2019 - заключен сервитут с СШ по ЗВС. Биатлонный комплекс - сервитут согласовывается. | K34: 23.04.2019 - корректировки 27.02.2019 | L34: 24.04.2019 - корректировки 05.03.2019 | M34: Не требуется | N34: Не требуется | O34: 2019-05-06 | P34: Ордер № 134 от 06.05.2019 (до 29.04.2020) | Q34: Не требуется | R34: Не требуется | S34: 0 | T34: 0 | U34: =25+65+26+54+49+32 -> 251 | V34: 0 | W34: 0 | X34: 140 | Y34: + | Z34: - | AD34: 2019-07-31
D35: ОТП-18-00334 от 29.05.2018 | E35: ПКГО | F35: "Объект незавершенного строительства", распорложенный по адресу: Камчатский край, г. П-К, ул. Березовая | H35: 1 | I35: 20.03.2019 - начало согласования, 12.04.19-согласован на 100% | J35: - | K35: 10.04.2019 13.05.2019 - повторно | L35: 2019-05-31 | M35: 2019-05-31 | N35: № 731/19 от 06.06.19 (до 06.06.21) | O35: 2019-06-15 | P35: Ордер № 219 от 18.06.2019 (до 31.12.2019) | Q35: Не требуется | R35: Не требуется | S35: 15 | T35: 15 | U35: 0 | V35: 0 | W35: 1 | X35: 150 | Y35: + | Z35: - | AD35: 2019-07-24
D36: ОТП-18-00591 от 14.09.2018 | E36: ЕМР | F36: "Производственная база", расположенная по адресу: Российская Федерация, Камчатский край, Елизовский муниципальный район, Пионерское СП, п. Крутобереговый, ул. Елизовское шоссе, д. 18 | H36: 1 | I36: 29.04.2019 - начало согласования. 06.05.2019 - корректировки от ПРЭС. | J36: - | K36: 2019-05-20 | L36: 2019-05-22 | M36: 2019-05-22 | N36: № 593 от 24.05.2019 (до 24.05.2021) | O36: 2019-06-04 | P36: Ордер № 11/19 от 19.06.2019 (до 31.12.2019) | Q36: Не требуется | R36: Не требуется | S36: 0 | T36: 0 | U36: 0 | V36: =40+177+64+89+45 -> 415 | W36: 1 | X36: 80 | Y36: + | Z36: - | AF36: На 26.07.2019 - кабельная линия проложена, но не подключена. Необходима установка опоры с РЛНД и ТП.
D37: ОТП-18-00271 от 15.05.2018 | E37: ЕГП | H37: 550 р. | I37: Необходимо получить согласования заново 20.08.2018 | J37: - | K37: 2019-08-20 | L37: 2018-09-03 | M37: 2018-09-05 | N37: 24.09.2018 № 54 до 23.09.2020 | O37: 06.06.2019 - на новый ордер 17.05.2019 - подано заявл-е на новый ордер 03.10.2018 | P37: № 04-07/77 от 02.08.2019 (до 30.10.2019) № 04-07/122 от 05.10.2018 (до 31.11.2018, необходимо продление!) | Q37: Не требуется | R37: Не требуется | S37: 0 | T37: 0 | U37: 150 | V37: 0 | W37: 0 | X37: 25 | Y37: + | Z37: - | AD37: 21.08.2019
D38: ОТП-17-00931 от 13.11.2017 | E38: ПКГО | I38: 04.07.2019 - начало согласования 02.07.2019 - трасса разработана | J38: 05.08.2019 - получены ТУ от МКУ "САД ПКГО" 24.07.2019 - повторно в МКУ "САД ПКГО" 18.07.2019 - получены ТУ от МКУ "СБ ПКГО" 05.07.2019 - запрос ТУ в МКУ "СБ ПКГО" и МКУ "САД ПКГО" (принято 08.07.2019) | K38: 2019-12-03 | L38: 2019-12-04 | M38: 2019-12-05 | N38: - | O38: 2019-08-06 | P38: № 430 от 19.08.2019 (до 01.11.2019) | Q38: Не требуется | R38: Не требуется | S38: 0 | T38: 0 | U38: 116 | V38: 0 | W38: 0 | X38: 250 | Y38: + | AD38: + | AF38: Ордер до 01.11.19-просрочен, необходимо продлить. Необходимо согласование с УК "Юг" (ул. Павлова, 2)
D39: - | E39: ЕГП | H39: - | I39: 31.05.2019 - согласование завершено 29.05.2019 - начало согласований | J39: - | K39: 2019-06-03 | L39: 2019-06-13 | M39: 2019-06-24 | N39: № 24 от 01.07.2019 (до 30.06.2021) | O39: вх. №1601 от 29.08.19г. | P39: 04-07/91 от 30.08.2019 (о 01.09.2020) | Q39: Не требуется | R39: Не требуется | S39: 0 | T39: 0 | U39: 414 | V39: 0 | W39: 0 | X39: - | Y39: + | Z39: -
D40: ОТП-18-00497 от 08.08.2018 | E40: ЕГП | F40: "Жилой дом", расположенный по адресу: Камчатский край, Елизовский район, г. Елизово, пр. Излучина, д.14 | H40: 550 р. | I40: 17.07.2019 - согласовано 03.06.19 - начало согласования | J40: - | K40: 2019-08-27 | L40: 2019-08-27 | M40: 2019-11-29 | N40: № 66 от 09.12.2019 (до 08.12.2021) | O40: 2020-01-14 | P40: №04-07/01 от 23.01.2020 | Q40: 12.03.2020 - платёжное поручение получено 03.03.2020 - направлено в оплату 31.01.2020 - на оплату 28.01.2020 | R40: № 02/04-04 от 13.03.2020 | S40: 330 | T40: 0 | U40: 0 | V40: 0 | W40: 0 | X40: 15 | Y40: + | Z40: - | AD40: - | AF40: Участок 41:05:0101008:3273 - Мун. собственность, в бессрочке
D41: ОТП-17-00019 от 18.12.2017 | E41: ПКГО | H41: 550 р. | I41: 12.02.2019 - согласовано на 100% | J41: - | K41: 04.06.2019 - необходимы корректировки в АВТ 25.04.2019 13.05.2019 - повторно | L41: 2019-05-31 | M41: 04.06.2019 - необходимы корректировки в АВТ 31.05.2019 | N41: № 729/19 от 06.06.19 (до 06.06.21) | O41: 2019-06-19 | P41: Ордер № 287 от 28.06.2019 (до 31.12.2019) | Q41: 2019-07-16 | S41: 165 | T41: 0 | U41: 0 | V41: 0 | W41: 0 | X41: 100 | Y41: + | Z41: - | AF41: 25.07.2019 - организован выезд для обследования и рассчета стоимости сносимых насаждений.
D42: ОТП-18-00748 от 14.01.2019 | E42: ПКГО | F42: "Производственный логистический центр", расположенный по адресу: Российская Федерация, Камчатский край, г. Петропавловск-Камчатский, в районе шоссе Восточного | H42: 1 | I42: 03.06.19 - 100% 14.05.2019 - приступили к разработке | J42: - | K42: 2019-05-31 | L42: 2019-06-14 | M42: 2019-07-01 | N42: № 901/19 от 08.07.2019 (до 08.07.2021) | O42: 2019-07-25 | P42: № 372 от 29.07.2019 (до 31.05.2020) | Q42: 2019-11-28 | S42: 0 | T42: 280 | U42: 0 | V42: 0 | W42: 0 | X42: 100 | Y42: + | Z42: - | AF42: Все разрешительные документы переданы ООО "Строитель" (оригиналы), также принято решение о том, что оплачиват ьснос зелёных насаждений будут они.
D43: ОТП-18-00659 от 26.10.2018 | E43: ПКГО | H43: 1 | I43: 03.07.2019 - трасса согласована 26.06.2019 - трасса разработана На 25.06.2019 - требуется пересмотр мероприятий | J43: - | K43: - | L43: 12.08.2019 - корректировки 05.07.2019 | M43: 12.08.2019 22.07.2019 - отказ в размещении 12.07.2019 | N43: № 1294/19 от 23.08.2019г. (до 23.08.2021г.) | O43: Подано 03.09.2019 | P43: №501 от 16.09.2019 | S43: 0 | T43: 0 | U43: 380 | V43: 0 | W43: 0 | X43: 150 | Y43: + | Z43: - | AF43: КЛ от ранее проектируемой ТП (Скантранс, Камаз, Старкам)
D44: ОТП-18-00703 от 12.11.2018 | E44: ПКГО | F44: "Транспортно-логистический центр", расположенный по адресу: г.П-К, ш.Северо-Восточное | H44: 1 | X44: 150 | Y44: - | Z44: -
D45: ОТП-18-00070 от 28.02.2018 | E45: ЕГП | H45: 1 | I45: 2019-04-05 | J45: - | K45: 09.04.2019 13.05.2019 - повторно | L45: 2019-06-03 | M45: 04.06.2019 (рег. № 990 от 04.06.2019, № 01-36/810 от 13.06.2019) | N45: № 23 от 17.06.2019 (до 16.06.2021) | O45: вх. № 1318 от 23.07.2019 | P45: № 04-07/62 от 25.07.2019 (до 25.07.2020) | S45: 20 | T45: 10 | U45: 0 | V45: 0 | W45: 1 | X45: 150 | Y45: + | Z45: -
D46: ОТП-17-00818 от 01.11.2017 | E46: ЕМР | F46: "Жилой дом", расположенного по адресу: Российская Федерация, Елизовский м.р-н, Пионерское с.п., п. Светлый, мкр. Молодежный, ул. Беринга, д. 15 | H46: 1 | I46: 22.03.2019 - печати 29.11.2018 - согласования 13.08.2018 - старый образец 16.05.2018 - обвинение в подлоге | J46: - | K46: 01.03.2019 - Г.Г. Белоусову 18.06.2018 - Р.А. Долгову | L46: 10.06.2019 - Г.Г. Белоусов 20.07.2018 - от Р.А. Долгова | M46: 02.08.2019 - направлено (зарегистрировано 07.08.2019, т.к. некому отписывать, а сроки идут) 31.01.2019 - повторно 11.12.2018 - ОТКАЗ 29.11.2018 - повторно 07.11.2018 - ОТКАЗ 25.10.2018 - повторно 20.07.2018 - отозвано | N46: № 919 от 08.08.2019 | O46: 2019-08-14 | P46: № 12/19 от 22.08.2019 (до 19.08.2020) | S46: =375+28+27+27+32+394+142+338 -> 1363 | T46: 0 | U46: 0 | V46: 795 | W46: 1 | X46: 15 | Y46: - | Z46: - | AF46: ОТП-17-01058 от 19.01.2018 - РАСТОРГНУТ!
D47: ОТП-17-01051 от 18.01.2018 | E47: ЕМР | F47: "Жилой дом", расположенного по адресу: Камчатский край, Елизовский м.р-н, Пионерское с.п. п. Светлый, мкр. Молодежный, ул. Беринга, д. 45 | H47: 1 | X47: 15 | Y47: -
D48: ОТП-17-01058 от 19.01.2018 | E48: ЕМР | H48: 1 | X48: 15 | Y48: -
D49: ОТП-17-01064 от 22.01.2018 | E49: ЕМР | F49: "Жилой дом", расположенного по адресу: Камчатский край, Елизовский м.р-н, п. Светлый, мкр. Молодежный 235 | H49: 1 | X49: 15 | Y49: +
D50: ОТП-17-01077 от 31.01.2018 | E50: ЕМР | F50: "Жилой дом", расположенного по адресу: край Камчатский, Елизовский район, пос. Светлый, мкр. Молодежный, 242 | H50: 1 | X50: 15 | Y50: -
D51: ОТП-17-01081 от 19.01.2018 | E51: ЕМР | F51: "Жилой дом", расположенного по адресу: Камчатский край, Елизовский район, Пионерское с.п., п. Светлый, мкр. Молодежный, ул. Крашенинникова, д. 21 | H51: 1 | X51: 15 | Y51: -
D52: ОТП-18-00009 от 27.02.2018 | E52: ЕМР | F52: "Жилой дом", расположенного по адресу: Камчатский край, Елизовский м.р-н, Пионерское с.п., п. Светлый, мкр. Молодежный, ул. Крашенинникова, д. 23 | H52: 1 | X52: 15 | Y52: -
D53: ОТП-17-01074 от 26.01.2018 | E53: ЕМР | F53: "Индивидуальное жилищное строительство", расположенного по адресу: Камчатский край, Елизовский район, п. Светлый, мкр. Молодежный, 354 | H53: 1 | X53: 15 | Y53: -
D54: ОТП-17-01078 от 22.01.2018 | E54: ЕМР | F54: "Индивидуальное жилищное строительство", расположенного по адресу: Камчатский край, Елизовский р-н, п. Светлый, м/р. Молодежный 236 | H54: 1 | X54: 15 | Y54: -
D55: ОТП-18-00090 от 29.03.2018 | E55: ЕМР | F55: "Индивидуальный жилой дом", расположенного по адресу: Камчатский край, Елизовский район, п. Светлый, мкр. Молодежный, 308; | H55: 1 | X55: 15 | Y55: -
D56: ОТП-17-01086 от 21.02.2018 | E56: ЕМР | F56: "Жилой дом", расположенного по адресу: Российская Федерация, Камчатский край, Елизовский м. р-н, п. Светлый, мкр Молодежный, ул. Муравьева-Амурского, з/у 8 | X56: 15
D57: ОТП-17-01072 от 26.01.2018 | E57: ЕМР | F57: "Личное подсобное хозяйство", расположенного по адресу: Камчатский край, р-н Елизовский, п. Светлый, м/р Молодежный, 310; | H57: 1 | X57: 15 | Y57: -
D58: ОТП-19-00243 от 27.05.2019 | E58: ЕМР | F58: "Индивидуальное жилищное строительство", расположенного по адресу: Камчатский край, р-н Елизовский, п. Светлый, мкр. Молодежный, ул. Невельского, з/у 29 | X58: 30
D59: ОТП-19-00237 от 27.05.2019 | F59: "Индивидуальное жилищное строительство", расположенного по адресу: Камчатский край, Елизовский район, п. Светлый | X59: 15
D60: ОТП-19-00252 от 27.05.2019 | F60: "Индивидуальное жилищное строительство", расположенного по адресу: Российская Федерация, Камчатский край, Елизовский м. р-н, Пионерское с.п., п. Светлый, мкр. Молодежный, ул. Невельского, з/у 24 | X60: 15
D61: ОТП-17-01069 от 09.02.2018 | E61: ЕМР | F61: "Индивидуальный жилой дом", расположенного по адресу: Камчатский край, р-н Елизовский, п. Светлый, м/р. Молодежный, 312 | H61: 1 | X61: 15 | Y61: -
D62: ОТП-18-00133 от 21.03.2018 | E62: ПКГО | F62: "Здание "Медицинский центр в г. Петропвловске-Камчатском (третья очередь строительства) хозяйственно-бытовой блок", расположенного по адресу: Камчатский край, г. Петропавловск-Камчатский, ул. Горького, д. 11/1, корп. 2 | H62: 1 | I62: 30.07.2019 - согласовано 26.07.2019 - передано на штамп в УАГЗО аПКГО На 20.06.2019 - трасса согласована на 80% 07.06.2019 - трасса разработана | J62: 24.07.2019 - получены ТУ от МКУ "САД ПКГО" 03.07.2019 - запрос ТУ в МКУ "САД ПКГО" | K62: - | L62: 13.08.2019 - корректировки 28.06.2019 | M62: 2019-08-12 | N62: № 1266/19 от 16.08.2019г. (до 16.08.2021г.) | O62: Подано 03.09.2019 | P62: № 496 от 13.09.2019 | S62: 0 | T62: 0 | U62: 250 | V62: 0 | W62: 0 | X62: 100 | Y62: +
D63: ОТП-17-00463 от 25.07.2017 | E63: ПКГО | H63: 550 р. | I63: есть | L63: есть | N63: есть | P63: № 418 от 15.09.19 (до 21.09.2021) | S63: 150 | T63: 0 | U63: 0 | V63: 0 | W63: 0 | X63: 15 | Y63: + | Z63: ГП-53 от 08.11.2018
D64: ОТП-18-00107 от 20.03.2018 | E64: ЕМР | H64: 550 р. | I64: 2018-05-18 | J64: - | K64: 2018-05-21 | L64: 2018-07-30 | M64: 2018-09-18 | N64: 28.09.2018 № 982 до 28.09.2019 | O64: 2018-10-18 | P64: № 19/18 от 29.10.2018 (до 31.12.2018) | S64: 22 | T64: 0 | U64: 0 | V64: 0 | W64: 0 | X64: 15 | Y64: + | Z64: -
D65: ОТП-17-00915 от 29.11.2017 | E65: ПКГО | H65: 1 | I65: 30.07.2019 - согласовано 26.07.2019 - передано на штамп в УАГЗО аПКГО 27.06.2019 - приступили к согласованию 13.06.2019 - трасса разработана в двух вариантах | J65: 24.07.2019 - получены ТУ от МКУ "САД ПКГО" 03.07.2019 - запрос ТУ в МКУ "САД ПКГО" | L65: акт подготоален 04.09.19 | M65: заявление на зазмещение от 06.09.19 Вх №12-08-00/6417/19 | N65: от 19.09.2019 № 1643/19 | O65: 2019-10-03 | P65: от 09.10.2019 №584 | S65: 0 | T65: 0 | U65: 200 | V65: 0 | W65: 0 | X65: 150 | Y65: + | Z65: -
D66: ОТП-19-00298 от 13.06.2019 | E66: ПКГО | F66: "Индивидуальный жилой дом", расположенный по адресу: местоположение установлено относительно ориенитра, расположенного за пределами участка. Почтовый адрес ориентира: Камчатский край, г. Петропавловск-Камчатский, ул. Тундровая | H66: 550 р. | I66: 05.09.2019 - передано на штамп в УАГЗО ПКГО, согласовано 27.08.2019 - разработана трасса | J66: нет | K66: 2019-08-27 | L66: 2019-09-09 | M66: 2019-09-12 | N66: от 18.09.2019 №1638 | O66: 2019-10-04 | P66: от 09.10.2019 №586 | S66: 50 | T66: 0 | U66: 0 | V66: 0 | W66: 0 | X66: 15 кВт | Y66: +
D67: ОТП-19-00131 от 27.03.2019 | E67: ПКГО | F67: "Мойка автомашин", расположенный по адресу: Камчатский край, г. Петропавловск-Камчатский, проспект Победы, д. 79А | H67: 1 | I67: 17.07.2019 - начало согласования 16.07.2019 - трасса разработана 15.07.2019 - трасса поступила в разработку | J67: ТУ № 3466/19/08 от 30.09.2019г, ТУ-МКУ САД-запрос отправлен 19.09.2019 | L67: 2019-09-20 | M67: 2019-10-09 | N67: от 21.10.2019 №1923/19 | O67: 2019-10-21 | P67: от 01.11.2019 №640 | S67: 0 | T67: 0 | U67: 270 | V67: 0 | W67: 0 | X67: 60 | Y67: + | Z67: - | AF67: 29.10.2019 подготовлено заявление на ордер
D68: ОТП-18-00223 от 26.04.2018 | E68: ЕГП | H68: 550 р. | I68: 23.04.2019 - согласовано ИП Белоусовым Г.Г. 07.06.2019 - разработана трасса Нет информации от подрядчика | J68: Нет информации | K68: Нет информации | L68: Нет информации | M68: Нет информации | N68: № 56 от 28.10.2019 (до 27.10.2021) | O68: 2019-10-30 | P68: № 04-07/118 от 31.10.2019 (до 04.11.2020) | Q68: Нет информации | R68: Нет информации | S68: 20 | T68: 0 | U68: 0 | V68: 0 | W68: 0 | X68: 15 | Y68: + | Z68: ГП-51 от 07.11.2018
D69: ОТП-17-00843 от 08.11.2017 | E69: ПКГО | H69: 550 р. | I69: 14.11.2019 - согласовано | J69: Нет информации | K69: Нет информации | L69: Нет информации | M69: Нет информации | N69: № 2208/19 от 03.12.2019 (до 03.12.2021) | O69: Нет информации | P69: № 706 от 18.12.2019 (до 14.11.2020) | Q69: Нет информации | R69: Нет информации | S69: 300 | T69: 0 | U69: 0 | V69: 0 | W69: 0 | X69: 15 | Y69: + | Z69: ГП-52 от 07.11.2018
D70: - | E70: ПКГО | F70: ул. Сахалинская | I70: 26.07.2019 - принято в разработку | J70: ТУ САД № 3753/19 от 24.10.19г., Запрос ТУ МКУ САД, вх. №4672 от 23.10.19г. | K70: 2019-11-08 | L70: 2019-12-16 | M70: 2019-12-16 | N70: 2019-12-19 | O70: 16.01.20-продление ордера, 20.12.2019 | P70: №712 от 23.12.2019 (продлён до 31.12.2020, до 20.01.2020) | S70: 0 | T70: 0 | U70: 0 | V70: 421 | W70: 0 | X70: - | Y70: + | AF70: 26.07.2019 - Закупка https://www.roseltorg.ru/procedure/31908043660 по категорированию ТП-2, расположенной по адресу: Камчатский край, г. Петропавловск-Камчатский, в районе жилого дома по ул. Сахалинская, д. 2. По указанию руководства взять данный объект в хозспособ.
D71: ОТП-19-00073 от 18.02.2019 | E71: ЕГП | F71: "Жилой дом", расположенный по адресу: Камчатский край, Елизовский муниципальный район, Елизовское городское поселение, Елизово г., Родниковая ул., 8 | H71: 550 р. | I71: 01.10.19 трасса разработана н.с. 29.10.19 согласована | J71: - | K71: ОРДТП | L71: 07.11.2019 ф.Октябрь 2010 | M71: №4177 от 12.11.19 | N71: №62 от 25.11.19 | O71: подготовлено письмо 04.12.19 | P71: 2019-12-09 | S71: 81 | T71: 0 | U71: 0 | V71: 0 | W71: 0 | X71: 15 | Y71: +
D72: ОТП-19-00525 (пока без даты, не подписан) | E72: ПКГО | F72: Д/с по ул. Вилюйская, д.60 | I72: 02.10.19-трасса разработана, 01.10.19 внесено в табл. | J72: ТУ САД № 3625/19 от 15.10.19г., СБ запрос ТУ № 4121/19 от 14.10.2019 | K72: - | L72: 2019-12-04 | M72: 2019-12-05 | N72: №2321/19 от 17.12.2019 (до 17.12.2021) | O72: 13.01.2020, 29.10.2019г. | P72: № 7 от 13.01.2020 (до 13.01.2021), №637 от 31.10.2019 (был получен ордер на аварийные работы, просрочен) | S72: 0 | T72: 0 | U72: 189 | V72: 0 | W72: 0 | X72: 300 | Y72: +
D73: ОТП-18-00397 от 16.07.2018 | E73: ПКГО | F73: "Станция технического обслуживания с моечным комплексом", расположенный по адресу: г.П-К, ул. Крутобереговая | H73: 550 р. | I73: 04.09.2019-трасса разработана, 16.05.2019 - приступили к разработке | J73: получены ТУ МКУ САД №4167/19 от 25.11.19, запрос ТУ САД 15.11.19г | K73: - | L73: 2019-11-20 | M73: 2019-12-04 | N73: №2319/19 от 17.12.2019 (до 17.12.2021) | O73: 2020-01-13 | P73: № 6 от 13.01.2020 (до 13.01.2021) | S73: 0 | T73: 0 | U73: 400 | V73: 0 | W73: 0 | X73: 15 | Y73: +
D74: ОТП-17-00739 от 15.09.2017 | E74: ЕМР | H74: 550 р. | I74: Нет информации | J74: Нет информации | K74: Нет информации | L74: Нет информации | M74: Нет информации | N74: Соглашение о сервитуте | O74: № 04-13/5193 от 13.12.2019 (до 13.12.2021) | P74: № 3996/1 и 3997/1 от 23.12.2019 (до 23.12.2020) | Q74: Нет информации | R74: Нет информации | S74: 70 | T74: 50 | U74: 0 | V74: 0 | W74: 1 | X74: 15 | Y74: + | Z74: ГП-50 от 07.11.2018 | AF74: Получено соглашение об установлении сервитута с Росимуществом
D75: ОТП-18-00052 от 26.02.2018 | E75: ЕГП | H75: 1 | I75: 29.10.19 согласовано 26.09.19 трасса исправлена нач. нов. Соглас. 12.04.19 - нужна новая трасса 13.03.2019 - начало согласований | J75: - | K75: - | L75: 2019-11-12 | M75: 20.11.2019 №4293 | N75: №63 от 02.12.2019 | O75: 2020-01-29 | P75: от 31.01.2020 №04-07/03 | S75: 30 | T75: 800 | U75: 0 | V75: 0 | W75: 1 | X75: 100 | Y75: + | Z75: -
D76: ОТП-17-01067 от 22.01.2018 | E76: ЕМР | H76: 1 | I76: Нет информации | J76: Нет информации | K76: Нет информации | L76: Нет информации | M76: Нет информации | N76: Соглашение о сервитуте | O76: Нет информации | P76: Нет информации | Q76: Нет информации | R76: Нет информации | S76: 0 | T76: 0 | U76: 50 | V76: 1250 | W76: 1 | X76: 150 | Y76: + | Z76: ГП-53 от 08.11.2018 | AF76: Получено соглашение об установлении сервитута с Росимуществом
D77: ОТП-18-00203 от 17.04.2018 | E77: ЕМР | H77: 550 р. | I77: 27.03.2019 - печати 30.01.2019 - согласования | J77: Запрос о выдаче ТУ в КГКУ "Камчатуправтодор" | K77: 2019-02-01 | L77: 2019-04-02 | M77: 2019-04-03 | N77: № 437 от 11.04.2019 (до 11.04.2021) | S77: 45 | T77: =34+36+34+8 -> 112 | U77: 0 | V77: 0 | W77: 1 | X77: 15 | Y77: + | Z77: - | AF77: 20.01.2019 Поданы документы на заключения сервитута с Камчатуправтодор (отказ, зу еще не предоставлен Камчатуправтодор). На стадии подготовки договора на выполнение технических условий (с Управлением автомобильных дорог), подготовка заявления на проведения земляных работ
D78: ОТП-18-00807 от 09.01.2019 | E78: ПКГО | F78: "Встроенно-пристроенные нежилые помещения по.85-88;90-92;97-101 подвала, поз.2-27 первого этажа жилого дома", расположенный по адресу: Камчатский край, г. Петропавловск-Камчатский, бульвар Рыбацкой Славы, 3 | H78: 1 | I78: 04.07.2019 - начало согласования 27.06.2019 - приступили к разработке трассы | J78: 04.10.2019 - получены ТУ от МКУ "САД ПКГО" 03.09.2019 - получены ТУ от МКУ "СБ ПКГО" №2933/19 21.08.2019 - запрос ТУ от МКУ "САД ПКГО" и МКУ "СБ ПКГО" | K78: 2019-10-18 | L78: 2019-10-18 | M78: 2019-10-31 | N78: Отказ в размещении от 11.11.19. | S78: 0 | T78: 0 | U78: 250 | V78: 0 | W78: 0 | X78: 48.9 | Y78: + | Z78: -
D79: ОТП-18-00750 от 23.11.2018 | E79: ПКГО | F79: "Объект незавершенного строительства", расположенный по адресу: Российская Федерация, Камчатский край, г. Петропавловск-Камчатский, ул. Березовая | H79: 1 | I79: 20.06.19 на печать ПКГО На 07.06.2019 - трасса в разработке | J79: - | K79: - | L79: 2019-06-26 | M79: 12.09.2019 - отзыв 15.07.2019 - отказ в размещении 01.07.2019 | S79: 0 | T79: 0 | U79: 110 | V79: 30 | W79: 1 | X79: 100 | Y79: + | Z79: - | AF79: нужно изменение тз
D80: ОТП-18-00746 от 05.12.2018 | E80: ПКГО | H80: 1 | I80: 30.09.19-разработана новая трасса, 30.07.2019 - согласовано 26.07.2019 - передано на штамп в УАГЗО аПКГО 17.06.2019 - трасса разработана в 2 вариантах. Повторное согласование. 25.11.19 | J80: 24.07.2019 - получены ТУ от МКУ "САД ПКГО" 03.07.2019 - запрос ТУ в МКУ "САД ПКГО" | K80: - | L80: (29.07.2019). Повторный акт выбора 28.11.2019 (4 вариант отдельная папка 06 Июнь 2019) ОРДТП | M80: подались повторно 23.08.19 повторно отказ 12.08.2019 - КЛ 02.08.2019 - отказ в размещении ВЛ 30.07.2019 - ВЛ | P80: Ордер № 59 от 28.02.2020 (верхняя часть) | S80: 0 | T80: 0 | U80: 165 | V80: 0 | W80: 0 | X80: 70 | Y80: + | Z80: - | AF80: Планируется увеличение мощности до 70 кВт! Водоканал подъехать в рабочем порядке согласовать трассу. Водоканал отказывается давать согласование из-за ТП 425. Прозваниваем коммуникации под ТП-425 выесняем действительно ли она на коммуникациях. Разработали лист согласова
D81: ОТП-18-00757 от 04.12.2018 | E81: ЕМР | F81: "Хозяйственные постройки", расположенные по адресу: Российская Федерация, Камчатский край, Елизовский район | H81: 1 | I81: 21.11.19-разработана новая трасса, На 02.07.2019 - необходимо менять трассу 26.06.2019 - приступили к согласованию 20.06.2019 - трасса разработана | J81: - | L81: разработан акт выбора 02.12.2019+сервитуты | M81: 14.11.2019 - отзыв 01.10.2019 | S81: 0 | T81: 0 | U81: 250 | V81: 1000 | W81: 1 | X81: 35 | Y81: + | Z81: - | AF81: Необходима корректировка трассы КЛ на ВЛ
D82: - | E82: ЕГП | H82: - | I82: 17.07.2019 - согласование завершено 06.06.2019 - начало согласований | J82: 16.12.19-получены ТУ Водоканал ТУ-314/12-01 от 04.12.19, 29.11.19-запрос ТУ Водоканал, Необходимо ТУ от КГУП "Камчатский водоканал" | K82: 2019-07-23 | L82: 2019-07-31 | S82: 0 | T82: 0 | U82: 329 | V82: 0 | W82: 0 | Y82: + | Z82: - | AF82: Необходимо заключение сервитута с :1368
D83: - | E83: ЕГП | I83: 13.06.2019 - разработана трасса для оп. 62 20.03.2019 - принято в разработку | L83: 2019-09-16 | M83: 2020-01-29 | N83: № 4 от 10.02.2020 (до 09.02.2022) | O83: 2020-03-02 | Y83: + | AF83: Коридор проходит (в том числе) в границах 2 земельных участков: 02:3541 - сведений о зарегистрированных правах в ЕГРН нет (гос. собств-сть не разграничена) 02:3310 - муниципальная собственность
D84: ОТП-17-00893 от 21.11.2017г. Доп. Согл. От 31.01.2018 | E84: ПКГО | F84: "Павильон №620 "Тонировка", расположенный по адресу: участок находится примерно в 163 м по направлению на северо-запад от риентира Жилой дом. Расположенного за пределами участка, адрес ориентира: Камчатский край, г. П-Камчатский, пр-кт Карла Маркса, дом.19 | H84: 1 | I84: согласовано 28.11.19 На подписи в архитектуре трасса разработана начало соглас 24.10.19 | J84: ТУ получены | K84: 04.03.2020 - кристина 29.11.19 ОРДТП (Владимир Ильич) | L84: 05.03.2020 АКТ выбора, схема гарниц сервитута 03.02.2020 некорректный) | S84: 0 | T84: 0 | U84: 30 | V84: 450 | W84: 1 | X84: 30 | Y84: + | Z84: - | AF84: 05.03.2020 - уточняется информация по договорам аренды заявителей, возможно необходимо расторжение договоров ОТП) 03.03.2020- 41:01:0010114:184 участок Платонова А.В.) 41:01:0010114:602 Жилой дом Тушканова 19 УК ?), 41:01:0010114:234 МКУ САД-необходим сервитут), 41:01:000000:2027 заказана выписка).Размещение ТП и КЛ-10 кВ предусмотрено также для договоров: ОТП-17-00950 от 08.12.2017 ОТП-17-00890 от 21.11.2017 ОТП-17-00962 от 12.12.2017 ОТП-17-00892 от 17.11.2017 ОТП-17-00946 от 12.12.2017 ОТП-17-00954 от 08.12.2017 ОТП-17-00963 от 12.12.2017 ОТП-17-00960 от 12.12.2017
D85: ОТП-18-00725 от 03.12.2018 | E85: ПКГО | F85: "Здание гостиницы", расположенные по адресу: Камчатский край, г. Петропавловск-Камчатский | H85: Без льготы | I85: 03.07.2019 - согласован один вариант, работаем с ним 26.07.2019 - передано на штамп в УАГЗО аПКГО 27.06.2019 - приступили к согласованию 25.06.2019 - трасса разработана в двух вариантах 23.05.2019 - приступили к разработке | J85: 24.07.2019 - получены ТУ от МКУ "САД ПКГО" 03.07.2019 - запрос ТУ в МКУ "САД ПКГО" | M85: - | N85: - | O85: , | P85: - | Q85: - | R85: - | S85: 0 | T85: 0 | U85: 50 | V85: 250 | W85: 1 | X85: 300 | Y85: + | AF85: Необходимо заключение сервитута, участок 16:11282 находится в мун. собственности и никому не предоставлен, на часть в его границах можно получать разрешение; Участок 00:41 в бессрочке у управления дорожного хозяйства, на часть в его границах нужно установление сервитута
D86: ОТП-18-00556 от 06.09.2018 | E86: ЕМР | F86: "Жилой дом", расположенный по адресу: Камчатский край, Елизовский район, п. Крутобереговый | I86: Трасса разработана - 23.10.2019 30.07.2019 - принято в разработку | J86: ТУ Камчатуправтодор | X86: 15 | Y86: + | AF86: необходим проект пересечения дороги в Камачтуправтодор
D87: ОТП-19-00030 от 15.02.19 | E87: ПКГО | F87: Здание склада № 3, расположенный по адресу: Камчатский край, г. Петропавловск-Камчатский, ул. Вулканная, д. 64а | H87: 1 | I87: 03.12.19 трасса разработана 31.10.2019 - принято в разработку | J87: получены ТУ № 159/20 от 20.01.20, ТУ дорожники | K87: 2020-02-28 | S87: 0 | T87: 0 | U87: 77 | V87: 643 | W87: 1 | X87: 150 | Y87: + | AF87: Мероприятия предполагают подключение от ранее проектируемой ТП для Лусева, ОТП-18-00360 (закупочная документация 107.7 - расформирована) общая трасса с птб данком и лусевым
D88: ОТП-19-00441 от 24.09.2019 | E88: ПКГО | F88: "Производственный цех", расположенног по адресу: Камчатский край, г. Петропавловск-Камчатский, пр. Содружества, д. 33 | U88: 383 | X88: 200 | AF88: Вместе с лусевым, кварталом, и птб
D89: ОТП-18-00360 от 17.07.2018 | E89: ПКГО | F89: "Здание СТО" расположенное в г. Петропавловск-Камчатском, ул. Вулканная | U89: 278 | X89: 15 | AF89: общая трасса с данком, птб, квартал
D90: ОТП-19-00203 от 16.05.2019 | E90: ПКГО | F90: "Склад", расположенный по адресу г. Петропавловск-Камчатский, в районе ул. Вулканная | U90: 377 | X90: 100 | AF90: общая трасса с лусевым, данком и квартал
D91: ОТП-18-00204 от 16.04.2018 | E91: ЕМР | F91: "Гостевой дом", расположенный по адресу: Елизовский район, с. Николаевка | H91: 1 | I91: 02.08.2019 - согласовано 02.07.2019 - начало согласования 24.05.2019 - подготовлена трасса | J91: ППР откорректированный отправлен - 29.08.2019 № 27-11/3221( от 20.09.2019 27-11/3539),ППР направлен в НИРО 30.08.19 №3002 | K91: Не требуется | L91: 24.01.2020 - ОРДТП | M91: 2020-02-03 | N91: № 163 от 03.02.2020 (до 03.02.2022) | O91: 2020-03-02 | P91: от 01.03.2020 по 28.02.2021 | Q91: Подано исх 27-11_1356 от 25.03.20 | R91: 07.04.2020 Администрация готова к выезду. Жду когда будут свободные техники у И.В. Сукач. | S91: 60 | T91: 2350 | U91: 0 | V91: 0 | W91: 1 | X91: 50 | Y91: + | Z91: - | AF91: 14.02.2020-Ждем оригинал договора на воспроизводство биологических ресурсов. Поданы документы в НИРО. На 23.08.2019 - разрабатывается ППР для оценки вреда при работе в водоохранных зонах
D92: ОТП-19-00051 от 15.02.2019 | E92: ЕГП | I92: 10.04.2019 - разработаны 3 варианта трассы | T92: 0 | U92: 0 | V92: 0 | W92: 0 | X92: 110 | Y92: + | AF92: 08.08.2019 - направлена СЗ Харченко об изменениий мероприятий для исключения нового строительства и организации совместного подвеса
D93: ОТП-18-00137 от 17.04.2018 | E93: ЕМР | H93: 1 | I93: 25.10.2018 - недействителен | S93: 0 | T93: 3450 | U93: 0 | V93: 0 | W93: 0 | X93: 50 | Y93: + | Z93: -
D94: ОТП-18-00272 от 23.05.2018 | E94: ЕМР | F94: "ИЖД", расположенный по адресу: Российская Федерация, Камчатский край, Елизовский район | H94: 1 | S94: 30 | T94: 1300 | U94: 0 | V94: 0 | W94: 1 | X94: 80 | Y94: + | Z94: -
D95: ОТП-17-01066 от 19.01.2018 | E95: ЕМР | H95: 1 | I95: - | Q95: № 1 | S95: 120 | T95: 0 | U95: 0 | V95: 0 | W95: 0 | X95: 30 | Y95: + | Z95: № 51-179 от 21.06.2019 | AF95: Разрешительная документация получается ИП Морщагиным (ГП № 51-179 от 21.06.2019) Корректировка трассы в связи с необходимостью переноса ТП. Осуществлено строительство ЛЭП-10 кВ расчетного сечения от РУ-10 кВ РП-3. Планируется выполнение работ по монтажу основания для установки ТП-10/0,4 кВ. Строительство ВЛ-0,4 кВ будет незамедлительно выполнено по факту получения разрешительных документов.
D96: - | E96: ЕГП | I96: 20.03.2019 - принято в разработку | Y96: +
D97: - | E97: ЕГП | I97: 20.03.2019 - принято в разработку | Y97: +
D98: ОТП-18-00437 от 13.08.2018 | E98: ЕМР | F98: "Жилой дом", расположенный по адресу: Камчатский край, Елизовский район, Раздольненское сельское поселение, СНТ "Искра", ул. Лесная, д. 48 | H98: 550 р. | I98: 19.03.2020-согласовано 20.08.2019 - принято в разработку. Заключен сервитут строительство факт | X98: 15 | Y98: + | AF98: СЗ на изменение мероприятий (рядом ВЛ-10 кВ, есть вариант подключить, на подключение от СТП факт. Заключен сервитут с копьевой, строительство факт
D99: ОТП-18-00420 от 13.08.2018 | E99: ЕМР | F99: "Жилой дом", расположенный по адресу: Камчатский край, Елизовский район, Раздольненское сельское поселение, СНТ "Искра", ул. Лесная, д. 50 | H99: 1 | I99: 19.03.2020-согласовано 20.08.2019 - принято в разработку. Заключен сервитут строительство факт | X99: 15 | Y99: + | AF99: СЗ на изменение мероприятий, на подключение от СТП факт. Заключен сервитут с копьевой, строительство факт
D100: ОТП-19-00330 от 11.06.2019 | E100: ПКГО | F100: "Здание стоянки", расположенный по адресу: Камчатский край, Петропавловск-Камчатский, ул. Ларина | H100: 1 | I100: 07.10.2019 - принято в разработку | X100: 100 | Y100: +
D101: ОТП-17-00829 от 02.11.2017 | E101: ЕМР | F101: "Здание кафе", расположенный по адресу: участок находится примерно в 2120 м от ориентира по направлению на северо-восток. Почтовый адрес ориентира: Камчатский край, Елизовский район, пос. Нагорный, ул. Горная, д.11 | H101: 1 | I101: 19.03.2020 СОГЛАСОВАНО | X101: 150 | Y101: +
D102: ОТП-18-00816 от 27.12.2018 | E102: ПКГО | F102: "Объект незавершенного строительства", расположенный по адресу: Камчатский край, г. Петропавловск-Камчатский, просп. Циолковского | H102: 550 р. | I102: 27.01.2020 - принято в работу | S102: 150 | T102: 0 | U102: 0 | V102: 0 | W102: 0 | X102: 10 | Y102: +
D103: ОТП-17-00637 от 01.09.2017 | E103: ПКГО | H103: 550 р. | I103: 2018-06-29 | J103: 15.11.2018 - получено согл-е от МКУ "УКСиР" 07.06.2018 - получены ТУ от МКУ "САД ПКГО" 22.05.2018 - запрошены ТУ в МКУ "САД ПКГО" | K103: 25.08.2018 корректировки 09.07.2018 (ИП Долгов Р.А.) | L103: 25.09.2018 с корректировками 19.07.2018 (неверный) | M103: 21.11.2018 (оставшийся кусок) 26.09.2018 (трасса разделена на 3 заявления, 1 отказ) | N103: № 1325/18 от 15.10.2018 (до 15.10.2019), № 1326/18 от 15.10.2018 (до 15.10.2019), № 1673/18 от 03.12.2018 (до 03.12.2019) | O103: 2019-03-28 | P103: № 75 от 01.04.2019 (до 29.06.2019) | Q103: Не требуется | R103: Не требуется | S103: 0 | T103: 0 | U103: 600 | V103: 0 | W103: 0 | X103: 60 | Y103: + | Z103: - | AD103: 2019-07-11 | AF103: На 30.05.2019 - бригада КЛ ПРЭС работает на объекте Ждём ГНБ
D104: ОТП-00389 от 13.08.2015 | E104: ПКГО | F104: "Жилого дома", расположенный по адресу: Камчатский край, г. Петропавловск-Камчатский, Авачинский маяк | H104: 550 р. | I104: 24.05.2018 - 07.06.2018 | J104: - | K104: 2018-06-08 | L104: 2018-07-30 | M104: 2018-07-30 | N104: № 933/18 от 13.08.2018 (до 13.08.2019) | O104: 17.08.2018 13.11.2018 - на продление 10.01.2018 - на продление | P104: Продлён до 13.08.2019 Продлён до 31.12.2018 № 411 от 08.11.2018 (до 30.10.2018) | Q104: 2019-06-07 | R104: № 53 от 19.07.2019 | S104: 126 | T104: 0 | U104: 0 | V104: 0 | W104: 0 | X104: 15 | Y104: - | Z104: -
D105: ОТП-18-00216 от 17.04.2018 | E105: ПКГО | H105: 550 р. | I105: 20.06.19 на печать ПКГО Пересогласование 24.05.2018 - согласовано на 100% | J105: - | K105: 01.08.2018 - отказ 01.09.2018 - корректировки | L105: 02.07.2019 05.10.2018 15.08.2018 | M105: 03.07.2019 - новый вариант 09.10.2018 (трасса разделена на 2 заявления - попросили объеденить опять) 22.11.2018 (трасса вновь объединена) | N105: №929/19 от 15.07.2019 (до 15.07.2021) № 1672/18 от 03.12.2018 (до 03.12.2019) | O105: 02.08.2019 - по новой трассе 10.01.2019 - подались на зем. работы | P105: № 391 от 05.08.2019 (до 05.08.2021) № 8 от 17.01.2019 (до 30.09.2019) | Q105: 12.11.2019 - повторное заявление 13.06.19 - счет на оплату рубки 28.05.2019 - подались на рубку повторно 28.02.2019 (отказ в рубке - снег) 15.02.2019 - снос зел. нас. | R105: № 162 от 19.11.2019 (до 15.11.2020) №14/1 от 13.08.19 до 31.12.19 | S105: 500 | T105: 0 | U105: 0 | V105: 0 | W105: 0 | X105: 15 | Y105: - | Z105: -
D106: ОТП-18-00670 от 27.10.2018 | E106: ЕМР | H106: 550 р. | I106: 24.01.2019 - согласования 08.04.2019 - печати, 12.04.19 - согласован на 100% | J106: - | K106: 22.04.2019 13.05.2019 - повторно | L106: 2019-05-15 | M106: 2019-05-17 | N106: № 592 от 24.05.2019 (до 24.05.2021) | O106: 2019-06-07 | P106: Ордер № 11/2019 от 18.06.2019 (до 24.05.2021) | Q106: 2019-07-16 | R106: - | S106: 120 | T106: 0 | U106: 0 | V106: 0 | W106: 0 | X106: 15 | Y106: - | Z106: -
D107: ОТП-18-00449 от 30.07.2018 | E107: ЕМР | H107: 550 р. | I107: 24.01.2019 - согласования 08.04.2019 - печати | J107: - | K107: 22.04.2019 13.05.2019 - повторно | L107: 2019-05-15 | M107: 2019-05-17 | N107: № 573 от 21.05.2019 (до 24.05.2021) | O107: 2019-06-21 | P107: Ордер № 08 от 14.06.2019 (до 30.08.2021) | Q107: 2019-07-05 | S107: 120 | T107: 0 | U107: 0 | V107: 0 | W107: 0 | X107: 15 | Y107: - | Z107: -
D108: ОТП-19-00155 от 05.04.2019 | E108: ЕМР | H108: 1 | I108: 17.07.2019 - трасса согласована. 22.05.2019 - начало согласования. | J108: - | K108: Не требуется | L108: Не требуется | M108: Не требуется | N108: Не требуется | O108: 2019-07-17 | P108: № 19-02 от 19.07.2019 | Q108: 30.07.2019 - повторно 25.07.2019 | S108: 50 | T108: 930 | U108: 0 | V108: 0 | W108: 1 | X108: 15 | Y108: - | Z108: -
D109: ОТП-18-00192 от 25.04.2018 | E109: ЕМР | F109: "Жилой дом", расположенного по адресу: Российская Федерация, Камчатский край, Елизовский район, Раздольненское с.п. | H109: 550 р. | I109: 30.01.2019 - согласования 22.03.2019 - печати | J109: - | K109: 01.02.2019 13.05.2019 - повторно | L109: 2019-06-10 | M109: 2019-06-13 | N109: № 724 от 24.06.2019 (до 24.06.2021) | O109: вх №1675 от 04.10.19г. | P109: от 30.10.2019 №17/2019 | Q109: надо! | S109: =27+27+27+27+27+27+27+27+27+27+27+27+27+27+23+23+30+30+30+30+32+32+32+34+27+27+32 -> 760 | T109: 0 | U109: 0 | V109: 0 | W109: 0 | X109: 15 | Y109: - | Z109: - | AF109: необходимо заявление на вырубку и подсчет деревьев
D110: ОТП-17-00957 от 12.12.2017 | E110: ПКГО | H110: 1 | I110: 2018-11-14 | J110: Нет информации | K110: Нет информации | L110: Нет информации | M110: 2019-02-19 | N110: 13.03.2019 № 377/19 до 13.03.2021 | O110: Нет информации | P110: 26.03.2019 № 72 до 26.03.2021 | S110: 0 | T110: 0 | U110: 185 | V110: 0 | W110: 0 | X110: 100 | Y110: - | Z110: ГП-52 от 07.11.2018
D111: ОТП-18-00008 от 26.01.2018 | E111: ПКГО | H111: 1 | I111: 02.03.2020 - пройдена новая подземная комиссия 14.11.2018 | J111: Нет информации | K111: Нет информации | L111: Нет информации | M111: 2019-02-19 | N111: 13.03.2019 № 379/19 до 13.03.2021 | O111: 04.03.2020 Нет информации | P111: № 80 от 01.04.2019 (до 14.11.2019) | S111: 0 | T111: 22 | U111: 22 | V111: 270 | W111: 1 | X111: 150 | Y111: - | Z111: ГП-53 от 08.11.2018 | AF111: 04.03.2020 подготовлено заявление на получение нового ордера 02.03.2020 необходима новая трасса для прохождения подземной комисси для нового ордера 28.02.2020 Необходимо продление ордера
D112: ОТП-18-00394 от 18.07.2018 | E112: ПКГО | F112: "Материально-техническая база", расположенного по адресу: Камчатский край, г. Петропавловск-Камчатский, ул. Дальняя, 14 | H112: 1 | I112: 11.12.2018 - отказ 14.12.2018 - согласовано на 100% | J112: - | K112: 11.12.2018 28.01.2019 - корректировки 02.02.2019 - корректировки | L112: 26.12.2018 30.01.2019 - с корректировками 05.02.2019 - с корректировками | M112: 2019-01-31 | N112: № 244/19 от 13.02.2019 (до 13.02.2021) | O112: 2019-02-20 | P112: № 41 от 20.02.2019 (до 14.12.2019) | S112: 0 | T112: 0 | U112: 173 | V112: 0 | W112: 0 | X112: 100 | Y112: - | Z112: - | AD112: 2019-07-03
D113: ОТП-18-00770 от 05.12.2018 | E113: ПКГО | H113: 550 р. | X113: 15 | Y113: - | AF113: На самом деле не подключен?
D114: ОТП-18-00615 от 03.10.2018 | E114: ПКГО | H114: 550 р. | I114: 12.04.2019 - согласовано на 90% | J114: ТУ № 1511 от 08.05.2019 05.04.2019 - запрос ТУ в МКУ "САД ПКГО" | K114: 2019-04-16 | L114: 2019-04-22 | M114: 2019-06-05 | N114: Приказ № 778/19 от 18.06.2019 (до 18.06.2021) | O114: 2019-07-01 | P114: Ордер № 314 от 08.07.2019 (до 31.12.2019) | S114: 0 | T114: 0 | U114: 62 | V114: 0 | W114: 0 | X114: 100 | Y114: - | Z114: - | AD114: 19.07.2019 - КЛ
D115: ОТП-18-00287 от 04.06.2018 | E115: ЕМР | H115: 550 р. | I115: 30.01.2019 - согласования 27.03.2019 - печати | J115: - | K115: 2019-02-01 | L115: 2019-04-02 | M115: 2019-04-03 | N115: № 436 от 11.04.2019 (до 11.04.2021) | O115: 2019-04-16 | P115: Ордер № 8/2019 от 14.05.2019 (до 31.12.2019) | S115: =22+30+31+24+6 -> 113 | T115: 0 | U115: 0 | V115: 0 | W115: 0 | X115: 15 | Y115: - | Z115: -
D116: ОТП-17-00809 от 25.10.2017 | E116: ПКГО | H116: 1 | I116: 20.04.2019 - согласование завершено | J116: 13.03.2019 - получены ТУ от МКУ "САД ПКГО" | K116: Нет информации | L116: Нет информации | M116: 2019-04-26 | N116: № 603/19 от 17.05.2019 (до 17.05.2021) | O116: Нет информации | P116: № 178 от 03.06.2019 (до 01.02.2020) | S116: 0 | T116: 0 | U116: 100 | V116: 550 | W116: 1 | X116: 150 | Y116: - | Z116: ГП-53 от 08.11.2018
D117: ОТП-18-00316 от 04.06.2018 | E117: ПКГО | H117: 550 р. | I117: 2018-11-14 | J117: - | K117: 2019-05-30 | L117: 31.05.2019 15.10.2018 - Поволоцкая и Павлова | M117: 31.05.2019 17.10.2018 (Поволоцкая и Павлова, устный отказ - необходима исполнительная съемка существующих линий в п. Дальний) | N117: Приказ № 730/19 от 06.06.19 | O117: 2019-06-19 | P117: Ордер № 288 от 28.06.2019 (до 31.12.2019) | S117: =7+20+34+34 -> 95 | T117: 0 | U117: 0 | V117: 0 | W117: 0 | X117: 15 | Y117: - | Z117: - | AF117: Включает трассы Поволоцкой (ОТП-17-00524) и Павловой (ОТП-18-00289)
D118: ОТП-17-00524 от 22.08.2017 | E118: ПКГО | H118: 550 р. | I118: 2018-07-19 | J118: - | K118: 26.09.2018, 09.10.2018 повторно | X118: 15 | Y118: - | Z118: -
D119: ОТП-18-00289 от 29.05.2018 | E119: ПКГО | H119: 550 р. | X119: 15 | Y119: - | Z119: -
D120: ОТП-18-00282 от 28.05.2018 | E120: ЕМР | H120: 550 р. | I120: 26.03.2019 - 29.05.2019 - согласования | J120: - | K120: - | L120: - | M120: 2019-08-28 | N120: № 1021 от 02.09.19 (до 02.09.2020) | O120: 2019-09-06 | P120: № 16/2019 от 11.09.2019 (до 30.06.2020) | S120: 420 | T120: 350 | U120: 0 | V120: 0 | W120: 1 | X120: 12 | Y120: - | Z120: ГП-52 от 07.11.2018
D121: ОТП-17-00437 от 12.07.2017 | E121: ЕМР | H121: 550 р. | I121: есть | L121: есть | N121: есть | P121: №13 от 05.09.19 (до 31.07.21) + нужно заключить договор с ФКУ ДСД! | S121: 480 | T121: 0 | U121: 0 | V121: 0 | W121: 0 | X121: 15 | Y121: - | Z121: ГП-52 от 07.11.2018 | AF121: нужно заключить договор с ФКУ ДСД!
D122: ОТП-00721 от 24.12.2015 | E122: ПКГО | H122: 550 р. | I122: есть | L122: есть | N122: есть | P122: №417 от 15.09.19 (до 15.09.21) | S122: 35 | T122: 200 | U122: 0 | V122: 0 | W122: 1 | X122: 15 | Y122: - | Z122: ГП-53 от 08.11.2018
D123: ОТП-18-00313 от 30.05.2018 | E123: ЕМР | H123: 550 р. | I123: Нет информации | J123: Нет информации | K123: Нет информации | L123: Нет информации | M123: Нет информации | N123: Нет информации | O123: Нет информации | P123: № 19/19 от 25.09.2019 (до 31.08.2019) | Q123: Нет информации | R123: Нет информации | S123: 187 | T123: 0 | U123: 0 | V123: 0 | W123: 0 | X123: 15 | Y123: - | Z123: ГП-52 от 07.11.2018
D124: ОТП-00765 от 28.12.2015 | E124: ЕГП | H124: 550 р. | I124: нет информации | J124: Нет информации | K124: Нет информации | L124: Нет информации | M124: Нет информации | N124: № 49 от 14.10.2019 (13.10.2021) | O124: Нет информации | P124: № 04-07/108 от 16.10.2019 (до 20.10.2019) | Q124: Нет информации | R124: Нет информации | S124: 50 | T124: 0 | U124: 0 | V124: 0 | W124: 0 | X124: 15 | Y124: - | Z124: ГП-53 от 08.11.2018 | AF124: Счёт на оплату № 49 от 18.10.2019, акт выполненных работ № 49 от 18.10.2019
D125: ОТП-18-00595 от 17.09.2018 | E125: ПКГО | F125: Бетонный блок модуль №5 в помещении торгового комплекса, расположенного в 25 метрах относительно ориентира жилого дома, почтовый адрес : Камчатский край, г. Петропавловск-Камчатский, ул.Ленинградская д.74 | H125: 550 р. | I125: 14.08.2019 - на штамп 27.06.2019 - приступили к согласованию 24.06.2019 - разработана трасса | J125: 07.08.2019 - получены ТУ от МКУ "САД ПКГО" 26.07.2019 - повторно 03.07.2019 - запрос ТУ в МКУ "САД ПКГО" | K125: 04.09.2019-топобюро | L125: 2019-09-15 | M125: 2019-09-16 | N125: № 1732/19 от 27.09.19г. (до 27.09.2021) | O125: 2019-10-04 | P125: № 585 от 09.10.2019 | S125: 0 | T125: 0 | U125: 320 | V125: 0 | W125: 0 | X125: 15 | Y125: - | Z125: -
D126: ОТП-19-00118 от 08.04.2019 | E126: ЕМР | F126: "Здание по продаже автомобильных запчастей и сопутствующих товаров", расположенный по адресу: Елизовский р-н, п. Нагорный | H126: 1 | I126: 17.09.19 согласовано. 17.07.2019 - начало согласования 11.07.2019 - трасса разработана 07.06.2019 - принято в работу | J126: - | K126: 04.09.19 топобюро | L126: 16.09.19 топобюро | M126: 2019-09-25 | N126: №1110 от 27.09.19 | O126: 2019-09-03 | P126: №16 от 14.10.2019 | S126: 170 | T126: 0 | U126: 0 | V126: 0 | W126: 0 | X126: 145 | Y126: - | Z126: - | AF126: оригинал ордера забрать в администрации
D127: ОТП-19-00135 от 14.05.2019 | E127: ЕГП | F127: "Жилой дом", расположенный по адресу: г. Елизово, ул. Некрасова, дом 2 | I127: 05.09.2019 - трасса согласована | K127: 05.09.19 направлено в топобюро на акт выбора | L127: 2019-09-06 | N127: № 48 от 03.10.2019 (до 02.10.2021) | O127: 2019-10-17 | P127: № 04-07/111 от 17.10.2019 (до 20.10.2020) | S127: 20 | T127: 0 | U127: 0 | V127: 0 | W127: 0 | X127: 15
D128: ОТП-16-00653 от 10.11.2016 | E128: ПКГО | H128: 0.5 | I128: Нет информации | J128: Нет информации | K128: Нет информации | L128: Нет информации | M128: Нет информации | N128: Нет информации | O128: Нет информации | P128: № 460 от 30.09.19 | Q128: Нет информации | R128: Нет информации | S128: 0 | T128: 0 | U128: 50 | V128: 550 | W128: 1 | X128: 30 | Y128: - | Z128: ГП-53 от 08.11.2018
D129: ОТП-18-00283 от 17.05.2018 | E129: ПКГО | H129: 550 р. | I129: Нет информации | J129: Нет информации | K129: Нет информации | L129: Нет информации | M129: Нет информации | N129: Нет информации | O129: Нет информации | P129: Ордер № 419 от 15.09.19 до 15.09.21 | Q129: Нет информации | R129: Нет информации | S129: 120 | T129: 0 | U129: 0 | V129: 0 | W129: 0 | X129: 15 | Y129: - | Z129: ГП-52 от 07.11.2018
D130: ОТП-16-00193 от 12.05.2016 | E130: ПКГО | F130: Здание по ремонту электробытовых приборов", расположенный по адресу: Камчатский край, г. Петропавловск-камчатский, р-н ул. Максутова | H130: 550 р. | I130: 12.11.19-откорректирована трасса, истек срок листа согласования, 10.07.2017 | J130: 29.11.19-получены ТУ Водоканал №301/12-01, 28.11.19-получены ТУ МКУ САД №4170/19 от 25.11.19г., 18.11.19-запрос тУ Водоканал, 15.11.2019 - запрос ТУ в МКУ САД, 19.06.2017 - запрос ТУ в МКУ "УДХ ПКГО" 22.06.2017 - получены ТУ | K130: 16.12.2019, 01.08.2017 | L130: 16.12.2019, 14.08.2017 | M130: 21.01.2020г., 17.12.2019, 12.07.2017 06.07.2018 - на продление | N130: приказ от 03.02.2020 №92/20 Продлено до 09.08.2020 № 373/17 от 09.08.2017 (до 09.08.2018) | O130: 27.02.2020, 15.08.2018 | P130: Продлён до 01.06.2019 Продлён до 09.08.2018 № 368 от 18.08.2017 (до 01.11.2017) | S130: 0 | T130: 0 | U130: 160 | V130: 0 | W130: 0 | X130: 15 | Y130: - | Z130: - | AF130: Необходимо продление ордера
D131: ОТП-00430 от 17.08.2015 | E131: ПКГО | F131: Здание магазина, расположенное по адресу: Камчатский край, г. Петропавловск-Камчатский, ул. Пограничная, д.5 | H131: 550 р. | I131: 11.11.19-откорректирована трасса, истек срок листа согласования, 21.02.2018-28.02.2018 | J131: 02.12.19-запрос ТУ МКУ САД, 29.11.19-получены ТУ Водоканал №302/12-0118.11.19-запрос ТУ Водоканал | K131: 2018-03-01 | L131: 12.03.2018 (06.12.2019 переделан) | M131: 2018-03-13 | N131: № 205/18 от 02.04.2018 (продлено до 02.04.2020) | O131: 2018-04-12 | P131: Надо податься на ордер, старый ордер № 73 от 16.04.2018 (до 31.10.2018) | S131: 0 | T131: 0 | U131: 180 | V131: 0 | W131: 0 | X131: 10 | Y131: - | Z131: - | AF131: Оригинал ордера не вернулся из УАГЗО аПКГО. Необходимо продление согласования (или новый лист согласования) и новый ордер (разр-е на разм-е продлено)
D132: ОТП-16-00766 от 08.12.2016 | E132: ЕГП | H132: 550 р. | I132: 17.09.2019 согласовано 21.08.2019 - новый лист согласвания 03.10.2017 | J132: - | K132: 2017-09-20 | L132: 2017-10-16 | M132: 06.11.2019 повторное заявление30.05.2018 | N132: 15.11.2019 № 60 09.07.2018 № 41 (до 08.07.2019) | O132: 22.11.2019 10.06.2019 - отказ в продлении 06.06.2019 - на новый ордер 26.07.2018 | P132: 12.10.2018 № 04-07/133 до 31.12.2018 21.08.2018 № 04-07/92 до 31.10.2018 | S132: 0 | T132: 0 | U132: 120 | V132: 0 | W132: 0 | X132: 5 | Y132: - | Z132: - | AF132: 20.01.2020 ждем продления договоров ОТП . С корниловой Готовится акт выбора (Новоженов) ,необходима повторная подача заявления на размещение .
D133: ОТП-17-00014 от 19.01.2017 | E133: ЕГП | H133: 550 р. | X133: 10 | Y133: - | Z133: - | AF133: 01.11.2019 Подготовлено заявление на размещение 20.10.2019 Готовится акт выбора (Новоженов) ,необходима повторная подача заявления на размещение .
D134: ОТП-18-00068 от 27.02.2018 | E134: ЕМР | F134: "Индивидульный жилой дом", расположенный по адресу: п.Светлый, мкр. Молодежный, уч. 398 | H134: 1 | I134: 30.01.2019 - согласования, 18.03.2019 - печати | J134: - | K134: 21.03.2019 13.05.2019 - повторно | L134: 2019-06-11 | M134: 2019-07-01 | N134: № 776 от 08.07.2019 (до 08.07.2021) | O134: 2019-08-09 | P134: № 11/19 от 05.08.2019 (до 12.08.2020) | S134: =26+26+26+26+26+26 -> 156 | T134: 0 | U134: 0 | V134: 0 | W134: 0 | X134: 10 | Y134: - | Z134: - | AF134: В месте прохождения трассы по факту установлены столбы Во вложении 2 варианта актов - со столбами на топооснове и без
D135: ОТП-18-000119 от 26.03.2018 | E135: ЕМР | F135: "Индивидульный жилой дом", расположенный по адресу: Камчатский край, п.Светлый, мкр.Молодежный, 403 | H135: 1 | X135: 15 | Y135: -
D136: ОТП-18-000129 от 21.03.2018 | E136: ЕМР | F136: "Индивидульное жилищное строительство", расположенный по адресу: п. Светлый, м/р Молодежный, уч. 77 | H136: 1 | I136: 30.01.2019 - согласования, 18.03.2019 - печати | J136: - | K136: 21.03.2019 13.05.2019 - повторно | L136: 2019-06-07 | M136: 2019-07-01 | N136: № 775 от 08.07.2019 (до 08.07.2021) | O136: 2019-08-09 | P136: № 11/19 от 05.08.2019 (до 12.08.2020) | S136: =26+26+26+14 -> 92 | T136: 0 | U136: 0 | V136: 0 | W136: 0 | X136: 30 | Y136: - | Z136: -
D137: ОТП-17-01043 от 15.01.2018 | E137: ЕМР | F137: "Индивидульное жилищное строительство", расположенный по адресу: Елизовский м.р-н, Пионерское с.п., п. Светлый, мкр. Молодежный, ул. Петропавловская, д.6 | H137: 1 | X137: 30 | Y137: -
D138: ОТП-19-00145 от 17.04.2019 | E138: ЕМР | F138: "Жилой дом", расположенный по адресу: Камчатский край, п. Пионерский, ул. Лесная, дом 110 | I138: 02.09.2019-трасса согласована, 17.07.2019 - начало согласования 15.07.2019 - трасса разработана | J138: - | K138: 2019-09-02 | L138: 2019-09-27 | M138: 2019-10-10 | N138: № 1211 от 16.10.2019 (до 16.10.2021) | O138: от 30.10.2019 №2519 | P138: от 05.11.2019 №23/19 | S138: 19 | T138: 0 | U138: 0 | V138: 0 | W138: 0 | X138: 15 | AF138: Линия от Марьясова А.П. (ОТП-19-00132 от 17.04.2019)
D139: ОТП-18-00658 от 22.10.2018 | E139: ПКГО | F139: "Здание гаража", расположенного по адресу: Камчатский край, г. Петропавловск-Камчатский, в районе ш. Восточное. | I139: 05.09.2019 - передано на штамп в УАГЗО ПКГО, 03.09.2019-разработана трасса, 02.09.19 принято в работу | J139: ТУ № 3446/19/08 от 27.09.2019г., ТУ-МКУ САД-запрос отправлен 19.09.2019 | L139: 2019-10-14 | M139: 2019-10-17 | N139: Приказ №1931/19 от 30.10.19 | O139: 2019-11-11 | P139: №658 от 14.11.19г | Q139: - | R139: - | S139: 0 | T139: 0 | U139: 250 | V139: 0 | W139: 0 | X139: 50
D140: ОТП-16-00824 от 16.12.2016 | E140: ПКГО | H140: 550 р. | I140: 17.10.2019 - согласовано | J140: Нет информации | K140: Нет информации | L140: Нет информации | M140: 2019-10-17 | N140: № 1929/19 от 30.10.2019 (до 30.10.2021) | O140: Нет информации | P140: № 654 от 11.11.2019 (до 21.10.2019) | Q140: Нет информации | R140: Нет информации | S140: 16 | T140: 0 | U140: 0 | V140: 0 | W140: 0 | X140: 15 | Y140: - | Z140: ГП-50 от 07.11.2018
D141: ОТП-17-00327 от 30.05.2017 | E141: ЕГП | H141: 550 р. | I141: 23.09.2019 - согласовано ИП Белоусовым Г.Г. | J141: Нет информации | K141: Нет информации | L141: Нет информации | M141: Нет информации | N141: № 55 от 28.10.2019 (до 27.10.2021) | O141: Нет информации | P141: Ордер готов - № 04-07/116 от 31.10.2019 (до 04.11.2020) | Q141: Нет информации | R141: Нет информации | S141: 58 | T141: 0 | U141: 0 | V141: 0 | W141: 0 | X141: 15 | Y141: - | Z141: ГП-50 от 07.11.2018
D142: ОТП-17-00460 от 13.07.2017 | E142: ЕГП | H142: 550 р. | I142: 23.09.2019 - согласовано ИП Белоусовым Г.Г. | J142: Нет информации | K142: Нет информации | L142: Нет информации | M142: Нет информации | N142: № 54 от 28.10.2019 (до 27.09.2021) | O142: 2019-10-30 | P142: Ордер готов - № 04-07/119 от 31.10.2019 (до 04.11.2020) | Q142: Нет информации | R142: Нет информации | S142: 15 | T142: 0 | U142: 0 | V142: 0 | W142: 0 | X142: 15 | Y142: - | Z142: ГП-50 от 07.11.2018
D143: ОТП-17-00466 от 19.07.2017 | E143: ЕГП | H143: 550 р. | I143: 23.09.2019 - согласовано ИП Белоусовым Г.Г. | J143: Нет информации | K143: Нет информации | L143: Нет информации | M143: Нет информации | N143: № 57 от 28.10.2019 (до 27.10.2021) | O143: 2019-10-30 | P143: № 04-07/117 от 31.10.2019 (до 04.11.2020) | Q143: Нет информации | R143: Нет информации | S143: 140 | T143: 0 | U143: 0 | V143: 0 | W143: 0 | X143: 15 | Y143: - | Z143: ГП-50 от 07.11.2018
D144: ОТП-18-00347 от 09.06.2018 | E144: ПКГО | H144: 550 р. | I144: 12.03.2019 - согласовано ИП Белоусовым Г.Г | J144: Нет информации | K144: Нет информации | L144: Нет информации | M144: Нет информации | N144: № 1849/19 от 07.10.2019 (до07.10.2021) | O144: Нет информации | P144: № 601 от 21.10.2019 (до 21.03.2020) | Q144: Нет информации | R144: Нет информации | S144: 70 | T144: 0 | U144: 0 | V144: 0 | W144: 0 | X144: 15 | Y144: - | Z144: ГП-51 от 07.11.2018
D145: ОТП-18-00320 от 13.06.2018 | E145: ЕМР | F145: Жилой дом, расположенный по адресу: Камчатский край, Елизовский район, пос. Раздольный, ул. Солнечная, 71 | H145: 550 р. | I145: 26.06.2019 - нужны печати 28.11.2018 - по новому бланку | J145: - | K145: 2019-06-06 | L145: 2019-06-11 | M145: 23.10.2019г. | N145: Постановление №1278 от 30.10.19 | O145: 2019-11-07 | P145: № 20/2019 от 02.12.2019 (до 30.10.2021) | Q145: - | R145: - | S145: 78 | T145: 0 | U145: 0 | V145: 0 | W145: 0 | X145: 12 | Y145: - | Z145: -
D146: ОТП-17-00972 от 28.12.2017 | E146: ЕМР | F146: "Здание котельной", расположенного по адресу: Камчатский край, Елизовский район, пос. Раздольный, ул. Зеленая | H146: 1 | I146: 10.05.2018 - недействителен, 25.03.2019 - по новому бланку, 12.04.19 - согласован на 80%, 25.04.2019 - согласовано на 100% | J146: Необходимо согласование с МЧС на размещение ЛЭП | K146: 13.05.2019 - повторно 24.04.2019 | L146: 2019-06-12 | M146: повторно 03.10.19 26.06.2019 - получены устные разъяснения, заявление отозвано. 19.06.19 повторно 10.05.2018 Отказано | N146: № 1208 от 15.10.2019 (15.10.2021) | O146: №1862 от 06.11.2019 | P146: № 19/2019 от 02.12.2019 (до 15.10.2021) 25.05.2018 - отказ от аРСП | S146: 270 | T146: 0 | U146: 0 | V146: 0 | W146: 0 | X146: 50 | Y146: - | Z146: -
D147: ОТП-19-00463 от 08.08.2019 | E147: ЕМР | F147: "Индивидуальное жилищное строительство", расположенный по адресу: местоположение установлено относительно ориенитра, расположенного за пределами участка. Ориентир жилой дом. Участок находится примерно в 2150 м, по направлению на северо-восток от ориентира. Почтовый адрес ориентира: Камчатский край, р-н Елизовский, п. Светлый, ул. Кооперативная, д. 18 | H147: 550 р. | I147: согласована -17.09.2019 26.08.2019 - принято в работу | J147: нет | K147: в топобюро 18.09.19 | L147: 2019-09-27 | M147: 03.10.2019 17.10.19 отказ - наложение площадей актов выборов 01.11.19 подано повторно | N147: №1331 от 13.11.2019 | P147: Разрешение №27/19 от 04.12.19 | S147: 69 | T147: 0 | U147: 0 | V147: 0 | W147: 0 | X147: 15 | AF147: ордер 1 на двоих с кишкуновой
D148: ОТП-19-00452 от 26.07.2019 | E148: ЕМР | F148: "Жилой дом", расположенный по адресу: Камчатский край, Елизовский муниципальный район, Пионерское сельское поселение, поселок Светлый, мкр Молодёжный, ул. Курильская, з/у 9 | H148: 550 р. | I148: 12.09.19 согласовано 26.08.2019 - принято в работу | J148: нет | K148: 12.09.2019 топобюро | L148: 27.09.20019 | M148: 03.10.2019 17.10.19 отказ - наложение площадей актов выборов 01.11.19 подано повторно | N148: №1330 от 13.11.2019 | O148: 2736/з от 28.11.19 | P148: Разрешение №27/19 от 04.12.20 | S148: 185 | T148: 0 | U148: 0 | V148: 0 | W148: 0 | X148: 15
D149: ОТП-18-00346 от 14.06.2018 | E149: ЕГП | H149: 550 р. | I149: 19.04.2019 - согласовано | J149: Нет информации | K149: Нет информации | L149: Нет информации | M149: Нет информации | N149: № 200 от 08.11.2019 (до 08.11.2021) | O149: Нет информации | P149: № ru51401101-2019/005 от 21.11.2019 (до 20.10.2021) | Q149: Нет информации | R149: Нет информации | S149: 65 | T149: 0 | U149: 0 | V149: 0 | W149: 0 | X149: 12 | Y149: - | Z149: ГП-51 от 07.11.2018
D150: ОТП-19-00472 от16.08.2019 | E150: ПКГО | F150: "Жилой дом", расположенного по адресу:установленно относительно ориентира, раположенного в границах участка. Ориентир жилой дом. Почтовый адрес ориентира: Камчатский край, г. Петропавловск-Камчатский, ул. Мишенная, д.37 . | I150: согласовано 07.11.19 принято в работу от 03.09.19. Трасса разработана. | K150: 2019-11-07 | L150: 2019-11-07 | M150: 2019-11-14 | N150: 2038/19 от 21.11.19 | O150: 2019-11-28 | P150: 2019-12-12 | S150: 25 | T150: 0 | U150: 0 | V150: 0 | W150: 0 | X150: 100 | AF150: Уточнить подключен ли этот участок на данный момент, нет не подключен, согласовываем трассу. Участок не подключен. Согласовываем. На подписи в архитектуре
D151: ОТП-19-00158 от 05.04.2019 | E151: ПКГО | F151: "ИЖД" | I151: 25.10-трасса разработана, 25.10.2019 внесено в таблицу | J151: ТУ МКУ САД № 3784/19 от 29.10.2019г | L151: 31.10.2019 ОРДТП В.Н. | M151: 2019-11-15 | N151: от 21.11.2019 №2036/19 | O151: 2019-11-29 | P151: №698 от 09.12.2019 | Q151: - | R151: - | X151: 45 | AF151: необходимо заключение сервитута
D152: ОТП-17-00120 от 11.05.2017 | E152: ЕГП | H152: 0.5 | I152: Нет информации | J152: Нет информации | K152: Нет информации | L152: Нет информации | M152: Нет информации | N152: Нет информации | O152: Нет информации | P152: № 04-07/112 от 22.10.2019 | Q152: Нет информации | R152: Нет информации | S152: 315 | T152: 0 | U152: 0 | V152: 0 | W152: 0 | Y152: - | Z152: ГП-53 от 08.11.2018
D153: ОТП-18-00377 от 02.07.2018 | E153: ЕМР | H153: 550 р. | I153: 2019-10-30 | J153: Нет информации | K153: Нет информации | L153: Нет информации | M153: Нет информации | N153: №1363 от 20.11.19 | O153: Нет информации | P153: № 26/19 от 04.12.2019 (до 04.05.2020) | Q153: Нет информации | R153: Нет информации | S153: 40 | T153: 0 | U153: 0 | V153: 0 | W153: 0 | Y153: - | Z153: ГП-51 от 07.11.2018
D154: ОТП-17-00958 от 18.12.2017 | E154: ЕМР | F154: "Индивидуальное жилое строительство", расположенный пл адресу: Елизовский район, в 1830м от п. Светлый, ул. Кооперативная, д.18 | H154: 1 | I154: 17.09.2019 - согласовано27.06.2019 - начало согласования 26.06.2019 - трасса разработана. Согласовано | J154: - | K154: 2019-09-02 | L154: 2019-09-24 | M154: 20.11.19 подано повторно 30.10.2019 | N154: постановление №1428 от 28.11.19 | P154: № 30/19 от 17.12.2019 | S154: 68 | T154: 0 | U154: 0 | V154: 0 | W154: 0 | X154: 15 | Y154: - | Z154: - | AF154: 24.10.19 заявление на размещение подготовлено передаём алексею. Переподаёмся на размещение из-за наложения трассы.
D155: ОТП-17-01008 от 19.12.2017 | F155: "Жилой дом", расположенный по адресу: п. Светлый, мкр. Молодежный, ул. Петропавловская, з/у 15 | H155: 1 | X155: 15 | Y155: - | Z155: -
D156: ОТП-19-00454 от 02.08.2019 | E156: ЕМР | F156: "Индивидуальное жилищное строительство", расположенный по адресу: Камчатский край, р-н Елизовский муниципальный район, п. Двуречье, ул. Восточная | H156: 550 р. | I156: 20.11.2019-согласована 22-10.2019 -трасса разработана 26.08.2019 - принято в работу | J156: нет | K156: 01.11.2019 Стукалкин | L156: 2019-11-25 | M156: 2019-11-29 | N156: № 1476 от 09.12.2019 (до 09.12.2021) | O156: вх. № 2559 от 19.12.2019 | P156: №26 от 30.12.2019 | S156: 13 | X156: 15 кВт
D157: ОТП-19-00226 от 06.06.2019 | E157: ЕМР | F157: "Производственно-техническая база" расположенная по адресу: Камчатский край, р-он Елизовский, п. Крутобереговый, ул. Елизовское шоссе | I157: 08.11.2019 - разработана трасса | L157: Новоженов | M157: не требуется | N157: не требуется | O157: 2019-12-01 | P157: №29/19 от 09.12.2019 | S157: 0 | T157: 0 | U157: 150 | V157: 0 | W157: 0 | X157: 150 | AF157: заключен сервитут, трасса проходит по зу ООО Хорс
D158: ОТП-17-00542 от 29.09.2017 | E158: ЕМР | H158: 0.5 | I158: Нет информации | J158: Нет информации | K158: Нет информации | L158: Нет информации | M158: Нет информации | N158: Нет информации | O158: Нет информации | P158: Ордер № 597 от 18.10.2019 | Q158: Нет информации | R158: Нет информации | S158: 90 | T158: 0 | U158: 0 | V158: 0 | W158: 0 | X158: 15 | Y158: - | Z158: ГП-52 от 07.11.2018
D159: ОТП-17-00909 от 21.11.2017 | E159: ПКГО | F159: Ленинградская 122 а | H159: 1 | I159: Нет информации | J159: Нет информации | K159: Нет информации | L159: Нет информации | M159: Нет информации | N159: Нет информации | O159: Нет информации | P159: Ордер № 597 от 18.10.2019 | Q159: Нет информации | R159: Нет информации | S159: 140 | T159: 0 | U159: 127*2 | V159: 0 | W159: 0 | X159: 150 | Y159: - | Z159: ГП-52 от 07.11.2018 | AF159: 05.03.2020 - трасса подготовлена 03.03.2020 Необходимо получение нового ордера
D160: ОТП-17-00815 от 02.11.2017 | E160: ПКГО | H160: 1 | I160: 2019-01-24 | J160: ТУ МКУ САД №2950/19/08 от 19.08.19 | K160: Нет информации | L160: Нет информации | M160: Нет информации | N160: Нет информации | O160: Нет информации | P160: Ордер № 656 от 11.11.2019 | Q160: Нет информации | R160: Нет информации | S160: 0 | T160: 0 | U160: 150 | V160: 150 | W160: 1 | X160: 100 | Y160: - | Z160: ГП-53 от 08.11.2018 | AF160: ООО "Теркамсервис" дали разрешиловку на воздушку и ТП от ВЛ-10 кВ, однако по этому объекту была СЗ об изменении точки присоединения
D161: ОТП-19-00560 от 05.11.2019 | E161: ПКГО | F161: Камчатский край, г. Петропавловск-Камчатский, Ул.Заречная | I161: 14.11.19 пройдена 06.11.2019 составлен план трассы, Спк-14.11.19 | M161: 17.12.19 -подано в 1 окно | N161: 2020-01-17 | O161: 21.01.2020 заявление на подписи у директора | P161: Ордер № 22 от 23.01.2020 (до 20.02.2021) | S161: 35 | T161: 0 | U161: 0 | V161: 0 | W161: 0 | X161: 15
D162: ОТП-17-00429 от 05.07.2017 | E162: ПКГО | F162: Камчатский край, г. Петропавловск-Камчатский, ул. Котовского | I162: Спк-22.10.19 | L162: получен Авт-30.10.19 | M162: 10.12.19 у директора на подписи 17.12.19 -подано в 1 окно | N162: 17.01.2020 получено | O162: 21.01.2020 - на подписи у директора | P162: Ордер № 23 от 23.01.2020 (до 20.02.2021) | S162: 50 | T162: 0 | U162: 0 | V162: 0 | W162: 0 | X162: 15
D163: ОТП-18-00798 от 28.12.2018 | E163: ЕГП | H163: 550 р. | I163: 31.07.2019 - согласовано 10.07.2019 - приступили к согласованию 09.07.2019 - приступили к разработке | J163: - | K163: 2019-08-27 | L163: по Вялому, акт выбора есть | M163: Направлено в росимущество 21.11.19. Отказ 30.10.19, направляемся повторно на росимущество по Вялому заявл. Направлено 03.09.19 | N163: получено разрешение №50 от 14.10.19 до ТП- | O163: 03.12.19 подготовили пакет документов на ордер до тп | P163: На 22.01.2019 - требуется разрешение на размещение от Росимущества. № 04-07/122 от 06.12.2019 - ордер до ТП | Q163: - | R163: - | S163: 115 | T163: 0 | U163: 0 | V163: 0 | W163: 0 | X163: 15 | Y163: - | Z163: - | AF163: Необходим перенос ранее установленных опор - они попадают на чужой земельный участок.
D164: ОТП-18-00821 от 10.01.2019 | E164: ЕГП | H164: 550 р. | X164: 15 | Y164: -
D165: ОТП-18-00795 от 10.12.2018 | E165: ЕГП | H165: 550 р. | X165: 15 | Y165: -
D166: ОТП-18-00800 от 28.12.2018 | E166: ЕГП | H166: 550 р. | X166: 15 | Y166: -
D167: ОТП-18-00827 от 21.01.2019 | E167: ЕГП | H167: 550 р. | X167: 15 | Y167: -
D168: ОТП-18-00828 от 21.01.2019 | E168: ЕГП | H168: 550 р. | X168: 15 | Y168: -
D169: ОТП-18-00826 от 21.01.2019 | E169: ЕГП | H169: 550 р. | X169: 15 | Y169: -
D170: ОТП-19-00078 от 27.02.2019 | E170: ЕГП | H170: 550 р. | X170: 15 | Y170: -
D171: ОТП-19-00115 от 14.03.2019 | E171: ЕГП | F171: "Жилой дом", расположенный по адресу: г. Елизово, уч. 5 | H171: 550 р. | S171: 50 | T171: 0 | U171: 0 | V171: 0 | W171: 0 | X171: 15 | Y171: - | Z171: - | AF171: по вялому направили заявл на разм в арх елизово, отказ так как участок находится в ведении РФ получено разрешение до тп
D172: ОТП-18-00352 от 14.06.2018 | E172: ЕМР | H172: 550 р. | I172: 16.04.2019 - согласовано | J172: Нет информации | K172: Нет информации | L172: Нет информации | M172: Нет информации | N172: № 1362 от 20.11.2019 (до 20.11.2021) | O172: Нет информации | P172: № 21/2019 от 12.12.2019 (до 21.11.2021) | Q172: Нет информации | R172: Нет информации | S172: 70 | T172: 0 | U172: 0 | V172: 0 | W172: 0 | X172: 12 | Y172: - | Z172: ГП-51 от 07.11.2018
D173: ОТП-19-00238 от 23.05.19 | E173: ПКГО | F173: "Здание картофелехранилища №3", ул. Абеля дом 6 | I173: 03.12.12 трасса согласована 28.10.19 внесено в табл. 19.11.19 трасса разработана | K173: 03.12.19 ОРДТП В.И. | L173: 10.12.2019 (ОРДТП В.И.) | M173: 2019-12-10 | N173: №2335/19 от 24.12.2019 | O173: 2020-01-14 | P173: Ордер №12 от 22.01.2020 до 20.01.21 | S173: 0 | T173: 0 | U173: 154 | V173: 0 | W173: 0 | X173: 150
D174: ОТП-18-00214 от 26.04.2018 | E174: ЕГП | H174: 550 р. | I174: 28.10.2019 - актуальный вариант 31.05.2019 30.05.2019 - начало согласований. | J174: - | K174: 2019-06-03 | L174: 2019-06-25 | M174: 19.12.2019 - повторно Отказ № 2166 от 16.08.2019 01.08.2019 (ЭЦП) | N174: № 70 от 30.12.2019 (до 29.12.2021) | O174: 2020-01-29 | P174: от 31.01.2020 №04-07/04 | S174: 20 | T174: 40 | U174: 0 | V174: 0 | W174: 1 | X174: 15 | Y174: - | Z174: - | AF174: Причина отказа - нерациональное использование земель, администрация ЕГП настаивает на использовании участка заявителя для размещения КЛ и ТП. По земельным участкам: 41:05:0101008:3269 - муниципальная собственность 41:05:0101008:2902 - временный 41:05:0101008:3402 - неразграничка
D175: ОТП-19-00109 от 12.03.2019 | E175: ЕМР | F175: Жилой дом, расположенного по адресу:местоположение установлено относительно ориентира, расположенного за пределами участка. Почтовый адрес ориентира: Росийская федерация, Камчатский край, Елизовский м.р-он, Николаевское с.п.,с.Николаевское, ул.Урожайная, з/у 7 | H175: 550 р. | I175: 15.11.19-трасса разработана, 20.05.2019 - принято в разработку | J175: - | K175: Не требуется | L175: Не требуется | M175: Не требуется | N175: Не требуется | O175: 2020-01-17 | P175: разрешение 20-01 от 28.01.2020 | S175: 135 | T175: 0 | U175: 0 | V175: 0 | W175: 0 | X175: 15 | Y175: - | Z175: -
D176: ОТП-19-00371 от 02.08.2019 | E176: ПКГО | F176: "Индивидуальный жилой дом", расположенный по адресу: Камчатский край, г. Петропавловск-Камчатский, ул. Дальняя | I176: 21.10.2019 15.10.2019 - трасса разработана 21.08.2019 - принято в работу | K176: новоженов | L176: 2019-10-30 | M176: 2019-12-01 | N176: №2293/19 от 16.12.2019 | O176: 2020-01-20 | P176: от 23.01.2020 №20 | S176: 22 | T176: 0 | U176: 0 | V176: 0 | W176: 0 | X176: 14
D177: ОТП-18-00568 от 11.09.2018 | E177: ПКГО | F177: "Личное подсобное хозяйство", расположенный по адресу: край Камчатский, г. Петропавловск-Камчатский | H177: 550 р. | I177: 14.10.2019- трасса разработана 29.08.2019 - принято в разработку | K177: 2019-10-20 | L177: 2019-11-15 | M177: 2019-12-13 | N177: №2340/19 от 25.12.2019 | O177: 2020-01-20 | P177: от 23.01.2020 №19 | S177: 40 | T177: 0 | U177: 0 | V177: 0 | W177: 0 | X177: 10
D178: ОТП-19-00535 от 30.09.2019 | E178: ПКГО | F178: Камчатский край, г. Петропавловск-Камчатский | I178: 15.11.2019- трасса разработана 10.10.19 внесено в табл. | J178: ТУ САД от 25.11.2019 | K178: На К.С. | L178: 2019-12-13 | M178: 10.01.2020 повторно 16.12.2019-отказ | N178: от 21.01.2020 №27/20 | O178: от 28.01.2020 №12-08-00/649/20 | P178: от 05.02.2020 №34 | S178: 200 | T178: 0 | U178: 0 | V178: 0 | W178: 0 | X178: 25
D179: ОТП-19-00245 от 27.05.19 | E179: ПКГО | F179: "Личное подсобное хозяйство" п. Дальний | I179: 15.11.2019- трасса разработана 13.11.19 внесено в табл. | K179: На К.С. | L179: 2019-12-01 | M179: 2019-12-13 | N179: №2341/19 от 25.12.2019 | O179: 2020-01-20 | P179: от 23.01.2020 №21 | S179: 145 | T179: 0 | U179: 0 | V179: 0 | W179: 0 | X179: 6 | AF179: Общая трасса с Вовк Л.И., ОТП-18-00568 от 11.09.2018
D180: ОТП-18-00513 | E180: ЕМР | F180: Камчатский край, Елизовский р-н, г.Елизово, п.Пионерский | I180: 2.12.19 ПТ СПК от 15,01,2020 | K180: 2020-01-17 | L180: 2020-01-17 | M180: 29.01.2020-подано 24.01.2020 | N180: №164 от 03.02.2020 | O180: №415/з от 19.02.2020 | P180: №04/20 от 25.02.2020 | S180: 28 | T180: 0 | U180: 0 | V180: 0 | W180: 0 | X180: 15
D181: ОТП-19-00407 от 12.07.19 | E181: ПКГО | F181: Здание "Художественная школа", расположенная по адресу: Камчатский край, г. Петропавловск-Камчатский, ул. Зеркальная | I181: 10.12.19-трасса разработана, 09.12.19 внесено в таблицу | J181: 17.01.20-получены ТУ №4645/19 от 25.12.2019г., 24.12.19г.-запрос ТУ МКУ САД | L181: 09.01.2020 ОРДТП | M181: 2020-01-31 | N181: №158/20 от 13.02.2020 | O181: 2020-02-18 | P181: № 54 от 28.02.20 | S181: 0 | T181: 0 | U181: 120 | V181: 0 | W181: 0 | X181: 30
D182: ОТП-00487 от 10.09.2015 | E182: ПКГО | H182: 550 р. | I182: 31.01.2020 - согласовано | J182: 29.01.2020 - получены ТУ от МКУ "САД" аПКГО | K182: Нет информации | L182: Нет информации | M182: 2020-02-20 | N182: № 281/20 от 06.03.2020 (до 06.03.2020) | O182: Нет информации | P182: Ордер № 81 от 17.03.2020 (до 31.10.2020) | Q182: Нет информации | R182: Нет информации | S182: 120 | T182: 0 | U182: 0 | V182: 0 | W182: 0 | X182: 10 | Y182: - | Z182: ГП-52 от 07.11.2018
D183: ОТП-18-00378 от 02.07.2018 | E183: ЕМР | H183: 550 р. | I183: 08.10.2018 - недействителен, 28.11.2018 - по новому бланку, 12.04.2019 - согласован, осталось проставить 2 печати 25.04.2019 - согласован на 100% | J183: - | K183: 05.12.19 передано (белоусову для исправления, акт был с ошибками в каталоге координат) 20.05.2019 с отказом аЕМР повторно, 24.04.2019 с отказом аЕМР повторно, 15.10.2018 с отказом аЕМР, 11.10.2018 | L183: 24.05.2019 17.10.2018 | M183: 20.11.19 подано заного 14.11.2019- отзыв 3010.19 подались повторно 25.10.19 подаёмся повторно пока подземка не истекла 29.11.2018 - потворно, 18.10.2018 | N183: № 1481 от 09.12.2019 (до 09.12.2021) ОТКАЗ от 23.10.2018; ОТКАЗ от 11.12.2018 | O183: 2020-12-30 | P183: 2020-03-13 | S183: =45+30+30+24 -> 129 | T183: 0 | U183: 0 | V183: 0 | W183: 0 | X183: 15 | Y183: - | Z183: - | AF183: в администрацию новолесновского сп направлено письмо с просьбой согласовать прохождение трассы по :97 участку. Согласие дали, подаёмся повторно. Лист согласования пересогласовываем, истекает срок годности. И подаёмся на размещение, может успеем. Переподаёмся на размещение.
D184: ОТП-19-00512 от 18.09.2019 | E184: ЕМР | F184: "Дачный дом" | I184: 23.09.19 внесено в табл. | N184: Получен сервитут | O184: 2020-01-20 | P184: получено | X184: 150 | AF184: 15.01.2020 подано заявление в роимущество на вырубку и зем. Работы. Заключен сервитут. Разработан и подан в росимущество проект рекультивации
D185: ОТП-18-00830 от 23.01.2019 | E185: ЕГП | F185: "Нежилое помщение", расположенный по адресу: Камчатский край, г. Елизово, ул. Гаражная, д. 1 | H185: 550 р. | I185: 24.04.2019 - согласование завершено 08.04.2019 - начало согласования | J185: 15.08.2019 - письмо об изменении сроков 12.08.2019 - направлен запрос Рыбвод 09.08.2019 - получена оценка вреда от КамчатНИРО 19.07.2019 - направлено письмо в КамчатНИРО Необходимо согласование с Дальрыбводом | K185: 25.06.2019 - на оставшуюся часть трассы 13.05.2019 - повторно 24.04.2019 | L185: 12.07.2019 - оставшаяся часть трассы 05.06.2019 - часть трассы | M185: От 06.08.2019 № 2955 26.06.2019 | N185: № 37 от 19.08.2019 (до 18.08.2021) - нижняя часть трассы № 31 от 08.07.2019 (до 07.07.2021) - верхняя часть трассы | O185: 11.07.2019 - верхняя часть, направлено и зарегистрировано под номером 1646 от 03.09.2019 | P185: - | S185: 92 | T185: 0 | U185: 0 | V185: 0 | W185: 0 | X185: 50 | Y185: - | Z185: - | AF185: ВНИРО оплаченно 30.08.2019
D186: ОТП-18-00047 от 19.02.2018 | E186: ЕМР | H186: 1 | I186: 14.08.2019 - получены все согласования и собраны печати 13.05.2019 - последний лист согласования использован для получения разрешения на размещение для заявителей - Шиллер А.А., Мамонтова Н.С., Саргисян А.А., Бунчук З.С. и Т.Л., Помыканов В.Ю. 22.03.2019 - печати 29.11.2018 - согласования 13.08.2018 - старый образец 16.05.2018 - обвинение в подлоге | J186: - | K186: 22.03.2019 - Г.Г. Белоусову 18.06.2018 - Р.А. Долгову | L186: 27.05.2019 - от Г.Г. Белоусова 24.07.2018 - от Р.А. Долгова | M186: 19.08.2019 19.08.2019 - отозвано (ЭЦП) 15.08.2019 - по электронной почте 20.07.2018 - отозвано, 25.10.2018 - повторно, 29.11.2018 - повторно, 31.01.2019 - повторно | N186: № 1068 от 18.09.2019 (до 18.09.2021) - Тюмин и Баязитова. № 1003 от 27.08.19 - кроме Тюмина и Баязитовой. Тюмин, баязитова направили повторно з-е на размещение 16.09.19 №1068 | O186: от 03.09.19 от 24.09.19 для тюмина баязитовой | P186: ордер 09.09.19 №14-19 | S186: 1274 | T186: 0 | U186: 0 | V186: 1450 | W186: 1 | X186: 15 | Y186: - | Z186: -
D187: ОТП-18-00134 от 21.03.2018 | E187: ЕМР | H187: 1 | X187: 15 | Y187: -
D188: ОТП-17-01053 от 13.02.2018 | E188: ЕМР | H188: 1 | X188: 15 | Y188: -
D189: ОТП-17-00837 от 01.11.2017 | E189: ЕМР | H189: 1 | X189: 15 | Y189: -
D190: ОТП-17-00807 от 10.10.2017 | E190: ЕМР | H190: 0.5 | X190: 15 | Y190: -
D191: ОТП-17-00898 от 22.11.2017 | E191: ЕМР | H191: 1 | X191: 15 | Y191: -
D192: ОТП-19-00134 от 01.04.2019 | E192: ЕМР | I192: 29.10.19 согласовано 29.07.2019 - трасса разработана на согласовании | J192: нет | K192: ОРДТП (ильич) | L192: 01.11.2019 корректировка 14.11.19. Вар.2 19.11.19 | M192: подано | N192: 28.11.19 от №1426 | O192: 2019-12-06 | S192: 577 | T192: 0 | U192: 0 | V192: 0 | W192: 0 | X192: 15 | AF192: Корректировка акта выбора. Разрешение на разм выдали но надо досогласовать 2 печати (упущение)
D193: ОТП-19-00467 от 12.06.2019 | E193: ЕМР | F193: "Телекоммуникационный узел доступа" | I193: 02.12.19-трасса разработана, 23.09.19 внесено в табл. | J193: - | K193: - | L193: - | M193: - | N193: - | O193: 2020-01-14 | S193: 133 | T193: 0 | U193: 0 | V193: 0 | W193: 0 | X193: 5
D194: ОТП-19-00201 от 28.05.2019 | E194: ЕГП | F194: "Хозяйственные постройки", расположенные по адресу: Елизовский район | H194: 1 | I194: 19.11.2019 Согласовано 25.10.19-трасса разработана, 25.09.19 внесено в табл. | J194: 20.12.19-Проект рекультивации на согласовании в росимуществе | L194: разработан 28.11.2019 (папка 09 Сентябрь 2019) ОРДТП | N194: Заключено соглашение от 26.02.2020 №03 | O194: подано в росимущество | S194: 50 | T194: 690 | U194: 0 | V194: 0 | W194: 1 | X194: 30
D195: ОТП-19-00797 от 26.12.2019 | E195: ЕГП | F195: Индивидуальное жилищное строительство Камчатский край, Елизовский муниципальный район, Елизовское городское поселение, г.Елизово | I195: 11.03.2020 - согласовано 17.01.2020 ПТ-20.01.2020 | J195: - | K195: 2020-02-03 | L195: 2020-03-11 | M195: 2020-03-12 | N195: № 12 от 23.03.20 (до 22.03.2021) | O195: 2020-04-03 | S195: 1146 | T195: 280 | U195: 0 | V195: 0 | W195: 1 | X195: 15
D196: ОТП-19-00198 от 25.04.2019 | E196: ЕГП | F196: Индивидуальное жилищное строительство Камчатский край, Елизовский муниципальный район, г.Елизово | I196: 17.01.2020 ПТ-20.01.2020 | X196: 15
D197: ОТП-19-00192 от 25.04.2019 | E197: ЕГП | F197: Индивидуальное жилищное строительство Камчатский край, Елизовский муниципальный район, г.Елизово | I197: 17.01.2020 ПТ-20.01.2020 | X197: 15
D198: ОТП-19-00188 от 25.04.2019 | E198: ЕГП | F198: Индивидуальное жилищное строительство Камчатский край, Елизовский муниципальный район, г.Елизово | I198: 17.01.2020 ПТ-20.01.2020 | X198: 15
D199: ОТП-19-00210 от 30.04.2019 | E199: ЕГП | F199: Индивидуальное жилищное строительство Камчатский край, Елизовский муниципальный район, г.Елизово | I199: 17.01.2020 ПТ-20.01.2020 | X199: 15
D200: ОТП-19-00219 от 08.05.2019 | E200: ЕГП | F200: Индивидуальная жилая застройка Камчатский край, Елизовский муниципальный район, г.Елизово | I200: 17.01.2020 ПТ-20.01.2020 | X200: 15
... 245 more rows

Sheet Лист1 (hidden)

Sheet Параметры
A1: ОТП-18-00316 от 04.06.2018 | E1: Район работ
A2: ОТП-17-00524 от 22.08.2017 | E2: ПКГО | I2: ОТП-00721 от 24.12.2015
A3: ОТП-18-00289 от 29.05.2018 | E3: ЕМР | I3: 2019-10-10
A4: ОТП-18-00282 от 28.05.2018 | E4: ЕГП
A5: ОТП-17-00437 от 12.07.2017
A6: ОТП-00721 от 24.12.2015
A7: ОТП-18-00313 от 30.05.2018
A8: ОТП-00765 от 28.12.2015
